Cogmind - Beta 16.1 @@@ ROGUE MODE // 2026.03.10 @ 01:30:25 Player: morimori Result: Destroyed by Enhanced Grunt with Neutron Cannon Performance ------------- Evolutions (9) 4500 Regions Visited (31) 6200 Robots Destroyed (382) 1910 Value Destroyed (20580) 20580 Prototype IDs (375) 7500 Alien Tech Used (8) 1600 Bonus (35106) 35106 TOTAL SCORE: 77396 Bonus ------- High Alert Combat Kills 876 Follower Combat Kills 2332 Hunted by Unchained 500 Destroyed Unchained 1000 Network Hubs Disabled 200 Registered with UFD 300 Met Optimus in HQ 500 Met Data Miner 300 Met Warlord at Base 500 MAIN.C Attacked Warlord 500 Warlord Defense Kills 1056 Built Enhanced Grunts 300 Met R17 at Cetus 500 Used Core Reset Matrix 3000 Met R17 at Research 2000 Scanned by Researcher 500 Destroyed MAIN.C Guards 500 Met MAIN.C 5000 Destroyed MAIN.C Shell 5000 Destroyed MAIN.C 10000 Met Architect 300 Destroyed A8 300 Friendly Fire -358 Cogmind --------- Core Integrity 0/1600 Matter 140/300 Energy 90/100 System Corruption 0% Temperature Cool (0) Movement Core (50) Location -1/Access_0 Parts ------- > --- POWER (2) -------- (None) > --- PROPULSION (6) --- (None) > --- UTILITY (14) ----- (None) > --- WEAPON (4) ------- (None) > --- INVENTORY (5) ---- Heavy Reactive Plating Graviton Cannon Omega Cannon Peak State ------------ > --- POWER ------------ Vortex Chain Reactor > --- PROPULSION ------- Biometal Heavy Treads Advanced Heavy Siege Treads High-density Centrium Heavy Treads > --- UTILITY ---------- Huge Storage Unit Spectral Analyzer Advanced Sensor Array Experimental Signal Interpreter Long-range Terrain Scanner Experimental Targeting Computer Experimental Core Analyzer Experimental Transmission Jammer Centrium Heavy Armor Plating Thermal Barrier Experimental EM Shield Experimental Force Field A0-MCA's Component Scanner > --- WEAPON ----------- Null Cannon Hypercooled Linear Accelerator Hypercooled Linear Accelerator Hypercooled Linear Accelerator > --- INVENTORY -------- Vortex Chain Reactor Experimental Power Amplifier Experimental Coolant Injector Experimental Coolant Injector Advanced Energy Well Experimental Matter Compressor Improved Armor Integrity Analyzer Precision Energy Filter Advanced Weapon Cycler Heavy Reactive Plating Experimental Shock Absorption System High-powered Transdimensional Reconstructor Integrity Redistributor Subatomic Replicator Vortex Shotgun Vortex Shotgun HERF Cannon HERF Cannon Core Cannon Hypercooled Linear Accelerator Hypercooled Linear Accelerator Graviton Cannon [Rating: 255] Favorites ----------- Power Vortex Chain Reactor Engine Cooled Deuterium Engine Power Core Neutrino Core Reactor Vortex Chain Reactor Propulsion Advanced Heavy Siege Treads Treads Advanced Heavy Siege Treads Leg Enhanced Biometal Leg Wheel Wheel Hover Unit Gravmag Array Utility Spectral Analyzer Device Improved Sensor Array Storage Huge Storage Unit Processor Spectral Analyzer Hackware Hacking Suite Protection Centrium Heavy Armor Plating Artifact Phase Redirector Weapon Hypercooled Linear Accelerator Energy Gun Gamma Rifle Energy Cannon HERF Cannon Ballistic Gun Helical Railgun Ballistic Cannon Hypercooled Linear Accelerator Launcher Advanced EMP Blaster Special Weapon CPS Tube Impact Weapon Core Stripper Slashing Weapon Segregator Special Melee Weapon Advanced Datajack Build | -11 -10 -10 -9 -9 -8 -8 -8 -8 -6 -6 -6 -6 -5 -5 -5 -5 -5 -5 -4 -4 -4 -4 -3 -3 -3 -3 -2 -2 -1 -1 -1 ------- Run | Yrd Mat Min Mat Min Mat Sto Rec Scr Fac Low Low Dat Pro Fac Ext Cet Arc Hub Fac Upp Upp War Pro Res Qua Sec Res Tes Acc Com Ac0 Slots Evolved 18 | . . . 2 . 2 . . . 4 . . . . 2 . . . . 2 . . . . 2 . . 2 . 2 . . Power 1 | . . . . . . . . . . . . . . . . . . . . . . . . 1 . . . . . . . Propulsion 4 | . . . . . 2 . . . 1 . . . . 1 . . . . . . . . . . . . . . . . . Utility 12 | . . . 2 . . . . . 2 . . . . 1 . . . . 2 . . . . 1 . . 2 . 2 . . Weapon 1 | . . . . . . . . . 1 . . . . . . . . . . . . . . . . . . . . . . Parts Attached 257 | 7 11 4 13 1 42 3 2 6 12 6 2 . 4 3 6 2 15 . 11 1 . 20 2 5 34 9 1 6 5 23 1 Power 19 | 1 1 . 4 . 3 . 1 . 1 1 . . . . . . . . 1 . . 2 . 1 . 1 . . . 2 . Engine 11 | 1 1 . 4 . 3 . 1 . . 1 . . . . . . . . . . . . . . . . . . . . . Core 3 | . . . . . . . . . 1 . . . . . . . . . 1 . . 1 . . . . . . . . . Reactor 5 | . . . . . . . . . . . . . . . . . . . . . . 1 . 1 . 1 . . . 2 . Propulsion 66 | 2 2 . 3 . 16 . . 2 7 . . . . 2 1 . 2 . 5 . . 9 1 1 6 . . 2 . 5 . Treads 24 | 1 1 . 1 . 9 . . . . . . . . . . . . . . . . . . . 5 . . 2 . 5 . Leg 13 | . . . . . . . . 1 . . . . . 1 . . . . . . . 8 1 1 1 . . . . . . Wheel 12 | 1 1 . 2 . 7 . . 1 . . . . . . . . . . . . . . . . . . . . . . . Hover 17 | . . . . . . . . . 7 . . . . 1 1 . 2 . 5 . . 1 . . . . . . . . . Flight . | . . . . . . . . . . . . . . . . . . . . . . . . . . . . . . . . Utility 84 | 2 4 1 3 1 8 1 1 1 2 2 . . 3 . 2 . 6 . 5 . . 5 1 2 15 3 . 4 2 9 1 Device 43 | 1 2 . 1 1 2 1 . 1 . . . . 1 . . . 6 . 2 . . 3 . 1 10 3 . 2 . 5 1 Storage 11 | 1 2 . . . 1 . . . . 1 . . 1 . . . . . 1 . . . . 1 1 . . . . 2 . Processor 9 | . . . . . 1 . . . 2 . . . . . . . . . 1 . . 2 . . . . . 1 1 1 . Hackware 1 | . . . . . . . . . . . . . . . 1 . . . . . . . . . . . . . . . . Protection 19 | . . 1 2 . 4 . 1 . . 1 . . 1 . 1 . . . 1 . . . 1 . 3 . . 1 1 1 . Artifact 1 | . . . . . . . . . . . . . . . . . . . . . . . . . 1 . . . . . . Weapon 88 | 2 4 3 3 . 15 2 . 3 2 3 2 . 1 1 3 2 7 . . 1 . 4 . 1 13 5 1 . 3 7 . Energy Gun 23 | 1 1 . 2 . 9 1 . 2 1 . . . 1 . . . . . . . . . . . 3 2 . . . . . Energy Cannon 11 | . . . . . . . . . . . 1 . . 1 1 . . . . . . . . 1 1 2 1 . 3 . . Ballistic Gun 33 | 1 2 3 1 . 5 1 . 1 1 1 1 . . . 2 2 6 . . 1 . 3 . . . . . . . 2 . Ballistic Cannon 13 | . . . . . . . . . . . . . . . . . . . . . . . . . 8 1 . . . 4 . Launcher 4 | . 1 . . . 1 . . . . 2 . . . . . . . . . . . . . . . . . . . . . Special Weapon 1 | . . . . . . . . . . . . . . . . . . . . . . 1 . . . . . . . . . Impact Weapon 1 | . . . . . . . . . . . . . . . . . . . . . . . . . 1 . . . . . . Slashing Weapon 1 | . . . . . . . . . . . . . . . . . . . . . . . . . . . . . . 1 . Piercing Weapon . | . . . . . . . . . . . . . . . . . . . . . . . . . . . . . . . . Special Melee Weapon 1 | . . . . . . . . . . . . . . . . . 1 . . . . . . . . . . . . . . Unidentified Prototypes 13 | . 1 . 1 . 3 2 . . . . . . . . . . 1 . 1 . 1 . . . 3 . . . . . . Corrupted Parts 20 | . . . . . . . . . . . . . . . 1 . 4 . . . . 3 . . 12 . . . . . . System Corruption 106 | . . . . . . . . . . . . . . . 10 . 14 . . . . 14 . . 68 . . . . . . Parts Lost 23 | . . . 5 . 11 . . . . . . . 2 . 2 . . . . . . . . . . 1 . . . 2 . Power 7 | . . . 2 . 3 . . . . . . . 1 . . . . . . . . . . . . . . . . 1 . Propulsion 6 | . . . . . 5 . . . . . . . . . 1 . . . . . . . . . . . . . . . . Utility 7 | . . . 2 . 2 . . . . . . . 1 . . . . . . . . . . . . 1 . . . 1 . Weapon 3 | . . . 1 . 1 . . . . . . . . . 1 . . . . . . . . . . . . . . . . Highest Loss Streak 4 | . . . 2 . 4 . . . . . . . 1 . 1 . . . . . . . . . . 1 . . . 1 . To Critical Strikes 1 | . . . . . 1 . . . . . . . . . . . . . . . . . . . . . . . . . . Average Backups 19 | 4 14 20 19 19 19 20 19 19 14 13 14 14 13 14 13 14 15 15 14 15 14 18 19 19 23 22 21 21 21 22 20 Power . | . 1 1 1 2 1 1 1 1 1 1 1 1 . . . 1 1 1 . 1 1 1 1 1 1 1 1 . 1 . . Propulsion 2 | 2 5 8 8 9 6 6 6 6 1 1 1 1 1 1 1 1 1 1 1 1 1 1 1 1 . . . . . . . Utility 9 | . 3 6 4 3 6 7 7 8 8 6 8 8 7 7 6 6 7 7 6 8 8 9 11 10 11 12 10 11 9 11 11 Weapon 6 | . 3 4 5 5 5 6 5 4 3 4 3 3 3 4 3 4 5 5 5 4 3 5 6 6 9 6 7 6 7 7 7 Tool/Special . | . . . . . . . . . . . . . . . . . . . . . . . . . . . . . . . . Unused Backups 103 | 1 12 1 8 . 13 1 3 3 6 4 . . . 1 5 1 . 1 2 . . 2 . 3 17 . 2 5 . 5 7 Power 14 | . 2 . 5 . . . . . 1 . . . . . . 1 . 1 . . . . . 1 3 . . . . . . Propulsion 20 | 1 7 . 1 . 5 . 1 . 1 . . . . . . . . . . . . 1 . . 2 . 1 . . . . Utility 39 | . 1 1 1 . 3 1 2 3 4 2 . . . 1 1 . . . . . . 1 . 1 5 . 1 2 . 5 4 Weapon 27 | . 2 . 1 . 5 . . . . 2 . . . . 4 . . . 2 . . . . 1 4 . . 3 . . 3 Tool/Special 3 | . . . . . . . . . . . . . . . . . . . . . . . . . 3 . . . . . . Average Slot Usage (%) 85 | . 100 100 96 100 91 100 98 99 90 86 86 86 85 81 81 80 84 88 88 94 94 95 100 94 80 77 78 78 79 75 69 Engine 3 | . 14 14 10 11 8 9 9 9 4 4 . . . 5 5 5 5 5 4 . . . . . . . . . . . . Reactor 1 | . . . . . . . . . . . . . . . . . . . . . . . . 2 4 4 4 4 3 3 2 Treads 9 | . 14 14 11 11 17 18 18 16 . . . . . . . . . . . . . . . . 12 13 12 11 11 11 10 Leg 1 | . . . . . . . . 1 . . . . . . . . . . . . . 10 30 27 1 . . . . . . Wheel 3 | . 14 14 11 11 16 18 18 18 . . . . . . . . . . . . . . . . . . . . . . . Hover 4 | . . . . . . . . . 24 20 20 20 20 16 17 17 20 23 21 26 25 15 . . . . . . . . . Device 17 | . 14 13 20 33 12 18 17 18 13 12 13 13 12 11 10 11 12 11 14 15 15 14 9 13 12 9 15 16 22 24 18 Storage 6 | . 14 14 11 11 9 9 9 9 6 6 12 13 10 11 9 11 8 11 6 5 5 5 5 4 4 4 4 4 3 3 2 Processor 13 | . . . . . 2 9 9 9 12 13 13 13 13 11 11 11 11 11 13 15 15 16 25 22 22 22 20 20 19 16 13 Protection 3 | . . . 9 . 6 . . . 5 6 . . 2 4 5 5 5 5 9 10 10 8 5 4 4 3 4 4 3 3 6 Energy Gun 2 | . 1 . 5 22 10 9 8 8 12 4 . . . 5 . . . . . . . . . . 4 1 . . . . . Energy Cannon 2 | . . . . . . . . . . . 5 6 5 2 7 1 . . . . . . . 1 4 1 . . 2 3 2 Ballistic Gun 7 | . 26 28 16 . 7 9 8 8 6 14 13 13 13 8 3 11 16 17 14 15 15 17 20 16 4 . . . . . . Ballistic Cannon 3 | . . . . . . . . . . . . . . . . . . . . . . . . . 2 14 15 16 11 6 9 Peak Build Rating 255 | 7 12 12 18 17 32 34 34 40 73 73 76 76 78 85 89 89 97 95 128 129 133 171 173 193 211 211 236 241 255 253 242 Average Rating 143 | 6 8 11 15 17 26 33 33 34 66 71 75 76 76 84 85 86 93 95 117 125 126 143 168 183 187 208 227 233 241 243 212 On Entrance 102 | . 7 11 11 17 17 32 34 27 40 70 73 76 76 75 85 88 89 95 95 128 124 132 171 168 193 207 211 229 233 229 242 Avg Prop Armor Cover (%) 14 | 5 9 13 9 12 14 17 17 16 . . . . . . . . . . . . . 4 . . 4 . 5 . . 18 . Naked Turns 30 | . . . . . . . . . . . . . . . . . . . . . . . . . . . . . . . 30 Heaviest Build 237 | 13 50 55 65 57 70 56 59 57 45 54 52 50 56 60 69 56 56 54 67 66 72 97 88 157 211 210 216 213 230 237 232 Greatest Support 245 | 20 20 16 16 12 26 22 22 22 52 52 52 52 52 66 66 66 66 62 74 74 73 173 173 178 220 220 220 245 245 245 240 Greatest Overweight (x) 64 | 1 4 3 6 4 5 2 2 2 . 1 . . 1 2 1 . 1 . 1 . . 1 . . 1 . 1 . . 64 . Average Overweight (x) . | . 2 2 4 4 2 2 2 2 . . . . . . . . . . . . . . . . . . . . . 1 . Largest Inventory Capacity 25 | 8 20 20 20 20 20 20 20 20 20 15 15 15 15 15 15 15 15 15 15 15 15 20 20 25 25 25 25 25 25 25 25 Average Capacity 21 | 7 16 20 20 20 20 20 20 20 15 15 15 15 15 15 15 15 15 15 15 15 15 19 20 20 25 25 25 25 25 25 23 Most Carried 25 | 8 20 20 20 20 20 20 20 20 19 15 15 15 15 15 15 15 15 15 15 15 15 20 20 23 25 25 25 25 25 25 25 Average Carried 20 | 4 14 20 19 19 19 19 19 19 14 14 15 15 14 14 14 14 15 15 14 15 14 19 20 20 24 24 24 24 24 24 22 Final Capacity 25 | 8 20 20 20 20 20 20 20 20 15 15 15 15 15 15 15 15 15 15 15 15 15 20 20 25 25 25 25 25 25 25 5 Final Carried 25 | 6 20 20 20 20 20 20 20 20 14 15 15 15 15 15 15 15 15 15 15 15 15 20 20 23 25 25 25 25 25 25 5 Class Distribution -------------------- 46% | Scavenger-Tank 12% | Mutant 8% | Commander-Mutant 7% | Scout 5% | Scavenger-Skirmisher 4% | Scavenger-Mutant 4% | Commander-Scout 4% | Scavenger-Scout Dominant Class ---------------- Mutant | -10/Materials Mutant | -10/Mines Scavenger-Mutant | -9/Materials Mutant | -9/Mines Scavenger-Mutant | -8/Materials Commander-Mutant | -8/Storage Commander-Mutant | -8/Recycling Commander-Mutant | -8/Scraptown Commander-Scout | -6/Factory Scout | -6/Lower Caves Scout | -6/Lower Caves Scout | -6/Data Miner Scout | -5/Proximity Caves Scout | -5/Factory Scout | -5/Extension Commander-Scout | -5/Cetus Commander-Scout | -5/Archives Commander-Scout | -5/Hub_04(d) Scavenger-Scout | -4/Factory Scavenger-Scout | -4/Upper Caves Scavenger-Scout | -4/Upper Caves Scavenger-Tank | -4/Warlord Scavenger-Skirmisher | -3/Proximity Caves Scavenger-Skirmisher | -3/Research Scavenger-Tank | -3/Quarantine Scavenger-Tank | -3/Section 7 Scavenger-Tank | -2/Research Scavenger-Tank | -2/Testing Scavenger-Tank | -1/Access Scavenger-Tank | -1/Command Scavenger-Gunner | -1/Access_0 Resources | -11 -10 -10 -9 -9 -8 -8 -8 -8 -6 -6 -6 -6 -5 -5 -5 -5 -5 -5 -4 -4 -4 -4 -3 -3 -3 -3 -2 -2 -1 -1 -1 ----------- Run | Yrd Mat Min Mat Min Mat Sto Rec Scr Fac Low Low Dat Pro Fac Ext Cet Arc Hub Fac Upp Upp War Pro Res Qua Sec Res Tes Acc Com Ac0 Matter Collected 19081 | 300 489 98 308 10 1066 100 159 40 85 205 40 . 240 164 404 120 711 29 361 376 231 553 423 145 2457 1812 1040 2115 1311 2993 696 Remotely . | . . . . . . . . . . . . . . . . . . . . . . . . . . . . . . . . Salvage Created 20314 | 165 528 32 941 140 1518 339 572 . . 441 . . 315 204 1633 384 375 679 403 177 43 452 465 117 2271 1523 551 1451 839 3623 133 Parts 880 | 16 45 2 64 11 82 12 23 . . 17 . . 16 4 74 20 28 28 13 1 1 19 21 4 116 45 13 68 32 105 . Haulers Intercepted 11 | . 1 . 2 . 3 3 . . . 1 . . . . . . . . . . . . . 1 . . . . . . . Recyclers Shooed 9 | . . 1 . . 1 . . . . . . . . . 1 . . . 3 . . . . . . 1 . . 2 . . Parts Field Recycled . | . . . . . . . . . . . . . . . . . . . . . . . . . . . . . . . . Retrieved Matter . | . . . . . . . . . . . . . . . . . . . . . . . . . . . . . . . . Parts Self-Destructed 43 | . . . . . . . . . . 6 . . 15 . . . . . . 1 . . 21 . . . . . . . . Prevented 9 | . . . . . . . . . . 9 . . . . . . . . . . . . . . . . . . . . . Parts Restored . | . . . . . . . . . . . . . . . . . . . . . . . . . . . . . . . . Kills | -11 -10 -10 -9 -9 -8 -8 -8 -8 -6 -6 -6 -6 -5 -5 -5 -5 -5 -5 -4 -4 -4 -4 -3 -3 -3 -3 -2 -2 -1 -1 -1 ------- Run | Yrd Mat Min Mat Min Mat Sto Rec Scr Fac Low Low Dat Pro Fac Ext Cet Arc Hub Fac Upp Upp War Pro Res Qua Sec Res Tes Acc Com Ac0 Combat Hostiles Destroyed 252 | . 14 2 18 6 23 3 6 . . 5 . . 8 1 18 4 1 1 . . . 7 7 . 25 29 10 19 10 27 8 Guns 111 | . 11 2 18 6 23 3 6 . . . . . 7 1 2 . 1 1 . . . 7 7 . 12 3 . . . 1 . Cannons 97 | . . . . . . . . . . . . . 1 . 6 . . . . . . . . . 2 26 10 19 8 18 7 AOE 10 | . 3 . . . . . . . . 5 . . . . 2 . . . . . . . . . . . . . . . . Classes Destroyed 24 | 2 7 . 2 . 3 . 3 . . . . . . . 1 . . . . . 1 3 . . 1 . . . 1 . . Worker 17 | . 1 . 2 . 3 1 . . . . . . . . . . . 2 1 . . . . . . 1 . 1 2 3 . Builder 13 | . 1 . . . 2 . 1 . . . . . . . 2 . . . . . . . . . . 2 . 3 2 . . Tunneler 6 | 4 . . . . . . . . . . . . . . 2 . . . . . . . . . . . . . . . . Hauler 11 | . 1 . 2 . 3 3 . . . 1 . . . . . . . . . . . . . 1 . . . . . . . Recycler 27 | 1 1 . . . 1 . 4 . . . . . . 1 1 . . 1 3 . . . . . . 3 . 5 4 2 . Mechanic 2 | . . . 1 . . . . . . . . . . . . . . . . . . . . . . 1 . . . . . Operator 15 | . 2 . 2 . 1 . . . . . . . . . 1 . 8 . . . . . . . . . . . 1 . . Watcher 26 | . 3 . 2 . 2 . . . . . . . . . 2 2 . . . . . . . 1 3 . . 2 5 4 . Swarmer 37 | . 9 2 4 4 . . . . . . . . 5 . . . . . . . . 1 2 . 1 3 . . . 6 . Grunt 76 | . 5 . 12 2 10 2 2 . . 5 . . 1 . 8 . . . . . . 1 . . 3 12 5 3 . 5 . Brawler 6 | . . . . . 3 . . . . . . . . . 1 . . . . . . 1 1 . . . . . . . . Duelist 4 | . . . . . 1 . . . . . . . . . . . . . . . . . 1 . 2 . . . . . . Protector 2 | . . . . . . . 1 . . . . . . . . . . . . . . 1 . . . . . . . . . Researcher 4 | . . . . . . . . . . . . . . . . . . . . . 1 . . . . . . 3 . . . Sentry 30 | . . . 2 . 8 1 1 . . . . . 1 1 5 . 1 1 . . . . 1 . . 4 2 . 1 1 . Demolisher 2 | . . . . . . . 2 . . . . . . . . . . . . . . . . . . . . . . . . Specialist 1 | . . . . . . . . . . . . . . . . . . . . . . 1 . . . . . . . . . Hunter 19 | . . . . . 1 . . . . . . . . . 2 . . . . . . . . . 2 2 . 4 4 4 . Programmer 38 | . . . . . . . 1 . . . . . 1 . . . . . . . . . 2 . 6 7 2 11 3 5 . Q-Series 2 | . . . . . . . . . . . . . . . . . . . . . . . . . . . . . 2 . . Behemoth 3 | . . . . . . . . . . . . . . . 2 . . . . . . . . . . 1 . . . . . Cetus Guard 4 | . . . . . . . . . . . . . . . . 4 . . . . . . . . . . . . . . . Quarantine Guard 10 | . . . . . . . . . . . . . . . . . . . . . . . . . 10 . . . . . . M Guard 2 | . . . . . . . . . . . . . . . . . . . . . . . . . . . . . . 2 . Enhanced Grunt 5 | . . . . . . . . . . . . . . . . . . . . . . . . . . . . . . . 5 Enhanced Hunter 2 | . . . . . . . . . . . . . . . . . . . . . . . . . . . . . . . 2 Combat Programmer 2 | . . . . . . . . . . . . . . . . . . . . . . . . . . . . . . 2 . Striker 3 | . . . . . . . . . . . . . . . . . . . . . . 2 . . . . . 1 . . . Fortress 1 | . . . . . . . . . . . . . . . . . . . . . . . . . 1 . . . . . . Thug 3 | . . . . . . . . . . . . . . . . . . 3 . . . . . . . . . . . . . Savage 2 | . . . . . . . . . . . . . . . . . . 2 . . . . . . . . . . . . . Butcher 1 | . . . . . . . . . . . . . . . . . . 1 . . . . . . . . . . . . . Guerrilla 1 | . . . . . . . . . . . . . . . . . . 1 . . . . . . . . . . . . . Mutant 1 | . . . . . . . . . . . . . . . . . . . . . . 1 . . . . . . . . . Best Kill Streak 10 | 3 3 2 7 4 5 3 4 . . 6 . . 4 1 4 4 3 3 2 . . 3 5 1 4 10 4 6 7 6 5 Combat Bots Only 10 | . 3 2 7 4 4 1 3 . . 5 . . 4 1 3 3 1 1 . . . 3 5 . 4 10 4 5 5 6 5 Max Kills in Single Turn 9 | 1 2 1 1 1 2 1 2 . . 4 . . 1 1 2 1 1 9 1 . 1 2 1 1 1 2 2 2 2 2 1 Gunslinging 1 | . . . . . . . . . . . . . . . 1 . . . . . . . . . . . . . . . . Exploded 3 | . 2 . . . . . . . . 3 . . . . 2 . . . . . . . . . . . . . . . . Melee . | . . . . . . . . . . . . . . . . . . . . . . . . . . . . . . . . Uniques/NPCs Destroyed 4 | . . . . . . . . . . . . . . . . . . . . . . . . . . . 1 . . 2 1 BL-1NK (-2/Research) MAIN.C Shell (-1/Command) MAIN.C (-1/Command) A8 (-1/Access_0) Combat | -11 -10 -10 -9 -9 -8 -8 -8 -8 -6 -6 -6 -6 -5 -5 -5 -5 -5 -5 -4 -4 -4 -4 -3 -3 -3 -3 -2 -2 -1 -1 -1 -------- Run | Yrd Mat Min Mat Min Mat Sto Rec Scr Fac Low Low Dat Pro Fac Ext Cet Arc Hub Fac Upp Upp War Pro Res Qua Sec Res Tes Acc Com Ac0 Hostile Shots Fired 1596 | . 56 17 102 21 181 4 17 . . 5 . . 39 . 60 . 2 5 6 6 . 27 31 . 103 171 40 103 80 197 323 Missed 487 | . 21 3 29 7 52 1 6 . . 3 . . 9 . 23 . 1 . 3 5 . 19 11 . 37 45 7 19 13 48 125 Hits 1109 | . 35 14 73 14 129 3 11 . . 2 . . 30 . 37 . 1 5 3 1 . 8 20 . 66 126 33 84 67 149 198 Melee 17 | . . . . . 10 . . . . . . . . . . . . . . . . . 2 . 5 . . . . . . Projectile 1092 | . 35 14 73 14 119 3 11 . . 2 . . 30 . 37 . 1 5 3 1 . 8 18 . 61 126 33 84 67 149 198 AOE 25 | . . 4 . . . . 4 . . . . . . . 1 . . . . . . . . . . . . . . 16 . Critical Strikes 57 | . . . 1 . 8 . . . . . . . 1 . 1 . . . . . . 1 1 . 10 5 . 5 2 8 14 Part Disruptions 7 | . . . . . . . . . . . . . 1 . . . . . . . . . . . . 1 2 1 . 1 1 Damage Taken 17360 | . 302 256 835 136 2189 43 241 . . 35 . . 552 . 981 . 47 219 74 16 . 179 350 . 1627 1223 278 560 376 1947 4894 Core 2186 | . 72 29 116 18 299 12 . . . 16 . . 139 . 74 . . 23 24 16 . 31 45 . 214 51 12 6 7 33 949 Absorbed by Shields 4616 | . . . . . . . 4 . . . . . . . . . . . . . . 94 153 . 573 1189 242 596 359 862 544 Reduced by Siege Mode 815 | . . . . . . . . . . . . . . . . . . . . . . . . . 87 36 . 16 38 255 383 Redirected to Shielding 160 | . . . . . . . . . . . . . . . 13 . . 16 . . . . . . . . . . . . 131 Ignored by Resistances 6960 | . . . . . . . . . . 5 . . 27 . . . . . . . . . . . . 453 365 672 774 3174 1490 Regen/Repaired (Parts) 3804 | . . . 18 . 88 . . . . . . . . . . . . . 88 . . . . . . 1484 . . . . 2126 Core Remaining (%) 75 | 100 . 59 . 66 . . . 43 . . . . 81 . . . . 90 . . . . 89 . . 60 . 94 . . . Volleys Fired 1263 | 10 54 12 86 10 133 10 14 . 2 3 23 . 28 19 116 21 38 7 24 7 13 22 16 9 84 70 18 77 56 177 104 Largest 4 | 2 2 2 2 2 2 2 2 . 1 2 1 . 3 3 3 1 3 3 3 3 3 4 4 4 4 4 4 4 4 4 3 Hottest 300 | 70 40 40 130 130 130 103 103 . 100 72 90 . 153 132 156 81 105 105 105 105 105 143 149 204 263 240 300 40 176 300 240 Shots Fired 2635 | 20 105 24 171 20 249 20 31 . 1 6 23 . 54 35 152 21 112 21 56 21 39 60 62 21 209 202 56 215 132 358 139 Gun 1428 | 20 103 24 171 20 249 20 31 . 1 . . . 30 24 36 . 112 21 49 21 39 54 62 14 161 8 . . . 158 . Cannon 1184 | . . . . . . . . . . . 23 . 24 11 103 21 . . 7 . . 4 . 7 48 194 56 215 132 200 139 Launcher 21 | . 2 . . . . . . . . 6 . . . . 13 . . . . . . . . . . . . . . . . Special 2 | . . . . . . . . . . . . . . . . . . . . . . 2 . . . . . . . . . Kinetic 1793 | 10 103 24 157 . 103 10 15 . . . . . 30 16 36 . 112 21 49 21 39 54 62 14 116 173 52 215 108 204 49 Thermal 515 | 10 . . 14 20 143 10 16 . 1 . 23 . 24 19 33 . . . 7 . . 4 . 7 30 21 4 . 16 23 90 Explosive 2 | . 2 . . . . . . . . . . . . . . . . . . . . . . . . . . . . . . Electromagnetic 293 | . . . . . 3 . . . . 6 . . . . 83 21 . . . . . . . . 63 . . . 8 109 . Entropic 30 | . . . . . . . . . . . . . . . . . . . . . . . . . . 8 . . . 22 . Robot Hit Streak 80 | 3 15 3 20 5 14 11 9 . . 3 . . 6 5 6 6 6 3 5 12 . 7 9 4 49 20 7 25 23 80 22 Robot Miss Streak 6 | 2 5 3 3 2 6 1 3 . . 1 . . 2 1 4 2 5 2 4 1 . 4 5 2 4 3 3 4 4 3 5 Penetration Max 2 | . . . . . . . . . . . . . . . 1 . 1 . . . . 1 1 . 2 . . . . . . Secondary Targets 17 | . 1 . 3 . 4 . . . . . . . 1 . 1 . . . . . . 2 3 . 2 . . . . . . Max Gunslinging Chain 1 | . 1 . 1 . 1 . . . . . . . 1 . 1 . . . . . . 1 1 . 1 . . . . . . Capacitor 84 | . . . . . . . . . . . . . . . . . . . . . . . . . . . . . . . 84 Shots Hit Robots 1539 | 9 57 13 127 13 144 18 23 . . 4 . . 24 20 79 16 60 7 24 14 . 31 30 8 131 118 30 110 82 247 100 Core Hits 753 | 6 29 6 58 7 65 13 20 . . 13 . . 12 5 42 7 24 18 8 4 2 16 16 3 59 62 15 48 32 127 36 Critical Kills 15 | . 1 . . . 1 . . . . . . . . . 1 . 2 . 2 . . 2 1 . 3 . . . 1 . 1 Critical Parts Destroyed 28 | . . . 1 . 2 . . . . . . . . . 2 . 3 1 . . . 1 . 1 6 . 1 . . 10 . Critical Strikes 77 | . 1 . 1 1 7 . . . . . . . . . 3 1 5 1 2 . . 3 1 1 9 5 7 6 3 17 3 Burn 5 | . . . . 1 4 . . . . . . . . . . . . . . . . . . . . . . . . . . Meltdown 3 | . . . . . . . . . . . . . . . 1 . . . . . . . . . . . . . 1 . 1 Destroy 44 | . 1 . 1 . 3 . . . . . . . . . 2 . 5 1 2 . . 3 1 1 9 . 1 . . 14 . Blast 22 | . . . . . . . . . . . . . . . . . . . . . . . . . . 5 6 6 2 1 2 Corrupt 2 | . . . . . . . . . . . . . . . . 1 . . . . . . . . . . . . . 1 . Detonate 1 | . . . . . . . . . . . . . . . . . . . . . . . . . . . . . . 1 . Melee Attacks 14 | . . . . . . . . . . . . . . . . . 3 . . . . . . . 4 . . . . 7 . Kinetic 4 | . . . . . . . . . . . . . . . . . . . . . . . . . 4 . . . . . . Thermal 7 | . . . . . . . . . . . . . . . . . . . . . . . . . . . . . . 7 . Impact . | . . . . . . . . . . . . . . . . . . . . . . . . . . . . . . . . Slashing . | . . . . . . . . . . . . . . . . . . . . . . . . . . . . . . . . Piercing . | . . . . . . . . . . . . . . . . . . . . . . . . . . . . . . . . Sneak Attacks 3 | . . . . . . . . . . . . . . . . . 3 . . . . . . . . . . . . . . Combat Hostiles . | . . . . . . . . . . . . . . . . . . . . . . . . . . . . . . . . Follow-up Attacks . | . . . . . . . . . . . . . . . . . . . . . . . . . . . . . . . . Damage Inflicted 57396 | 112 890 151 1084 206 2331 366 536 . . 752 . . 691 448 3137 634 1549 1508 661 297 103 979 951 240 3820 6288 2046 5286 3704 11364 7262 Guns 20545 | 112 691 151 1084 206 2331 366 536 . . . . . 416 378 752 . 1549 135 661 297 103 979 951 206 3171 383 . . . 5087 . Cannons 33612 | . . . . . . . . . . . . . 275 70 1895 634 . . . . . . . 34 446 5755 2046 5286 3704 6205 7262 Explosions 3095 | . 199 . . . . . . . . 752 . . . . 490 . . 1373 . . . . . . 59 150 . . . 72 . Melee 144 | . . . . . . . . . . . . . . . . . . . . . . . . . 144 . . . . . . Ramming . | . . . . . . . . . . . . . . . . . . . . . . . . . . . . . . . . Kinetic 33354 | 35 691 151 968 . 913 119 109 . . . . . 416 266 752 . 1549 135 661 297 103 979 951 206 2283 5215 1404 5286 2573 5325 1967 Thermal 13500 | 77 . . 116 206 1418 247 427 . . 280 . . 275 182 464 . . . . . . . . 34 59 540 642 . 833 2405 5295 Explosive 349 | . 199 . . . . . . . . . . . . . . . . . . . . . . . . 150 . . . . . Electromagnetic 8290 | . . . . . . . . . . 472 . . . . 1921 634 . 1373 . . . . . . 1478 . . . 298 2114 . Impact . | . . . . . . . . . . . . . . . . . . . . . . . . . . . . . . . . Slashing . | . . . . . . . . . . . . . . . . . . . . . . . . . . . . . . . . Piercing . | . . . . . . . . . . . . . . . . . . . . . . . . . . . . . . . . Entropic 1903 | . . . . . . . . . . . . . . . . . . . . . . . . . . 383 . . . 1520 . Highest Corruption 71 | . . . . . 10 10 10 . . . . . 1 . 10 10 10 . . . . 14 8 . 71 2 . 11 1 4 . Average Corruption 6 | . . . . . 7 10 10 . . . . . 1 . 10 10 6 . . . . 6 7 . 5 1 . 8 1 1 . Corruption Purged 36 | . . . . . . . . . . . . . . . . . 24 . . . . 8 . . . . . . . 4 . Corruption Blocked . | . . . . . . . . . . . . . . . . . . . . . . . . . . . . . . . . Effects 358 | . . . . . 38 18 47 . . . . . 1 . 18 10 15 . . . . 14 22 . 88 7 . 60 2 18 . Message Errors 96 | . . . . . 7 9 12 . . . . . . . 6 5 5 . . . . 2 9 . 20 3 . 15 . 3 . Matter Fused 83 | . . . . . 11 3 11 . . . . . . . 3 3 1 . . . . 4 6 . 26 . . 9 1 5 . Heat Flow Errors 43 | . . . . . 4 . 4 . . . . . . . 3 . 2 . . . . 2 3 . 12 2 . 7 . 4 . Energy Discharges 43 | . . . . . 6 3 6 . . . . . . . . 1 2 . . . . 3 . . 7 1 . 11 . 3 . Parts Rejected 2 | . . . . . 1 . . . . . . . . . . . . . . . . . . . . . . 1 . . . Parts Fused 5 | . . . . . . 1 . . . . . . . . 1 1 . . . . . . 1 . . . . . . 1 . Data Loss (minor) 38 | . . . . . 4 . 7 . . . . . 1 . 1 . 1 . . . . 3 2 . 9 1 . 7 1 1 . Data Loss (major) 19 | . . . . . 1 1 3 . . . . . . . 2 . 1 . . . . . 1 . 9 . . 1 . . . Misfires 14 | . . . . . 1 1 3 . . . . . . . 1 . 1 . . . . . . . 4 . . 2 . 1 . Alerts 8 | . . . . . 2 . . . . . . . . . . . . . . . . . . . 1 . . 5 . . . Misdirections 1 | . . . . . . . 1 . . . . . . . . . . . . . . . . . . . . . . . . Weapon Failures 6 | . . . . . 1 . . . . . . . . . 1 . 2 . . . . . . . . . . 2 . . . Overload Shots . | . . . . . . . . . . . . . . . . . . . . . . . . . . . . . . . . Overflow Damage 1663 | . 16 . . . . . . . . . . . 11 4 60 52 . 32 . . . . . . . 244 199 423 294 83 245 Projectiles 1615 | . . . . . . . . . . . . . 11 4 60 52 . . . . . . . . . 244 199 423 294 83 245 Explosions 48 | . 16 . . . . . . . . . . . . . . . . 32 . . . . . . . . . . . . . Melee . | . . . . . . . . . . . . . . . . . . . . . . . . . . . . . . . . Knockbacks 130 | . . . . . . . . . . . . . . . . . . . . . . . . . . 38 9 42 16 12 13 Impact . | . . . . . . . . . . . . . . . . . . . . . . . . . . . . . . . . Kinetic 118 | . . . . . . . . . . . . . . . . . . . . . . . . . . 31 9 39 15 11 13 Secondary 12 | . . . . . . . . . . . . . . . . . . . . . . . . . . 7 . 3 1 1 . Self-Inflicted Damage 100 | . . . . . . . . . . . . . . . . . . 100 . . . . . . . . . . . . . Shots 1 | . . . . . . . . . . . . . . . . . . 1 . . . . . . . . . . . . . Rammed . | . . . . . . . . . . . . . . . . . . . . . . . . . . . . . . . . Targets Rammed . | . . . . . . . . . . . . . . . . . . . . . . . . . . . . . . . . Kicked . | . . . . . . . . . . . . . . . . . . . . . . . . . . . . . . . . Crushed . | . . . . . . . . . . . . . . . . . . . . . . . . . . . . . . . . Highest Temperature 572 | 27 . 21 12 45 540 2 246 . 128 . 36 . 162 75 255 . 177 . 56 101 157 164 186 128 572 414 269 233 310 396 260 Average Temperature 73 | 12 . 11 4 14 135 1 78 . 72 . 14 . 49 25 70 . 68 . 15 29 38 42 64 37 101 85 75 87 120 59 109 Received Heat Transfer 2238 | . 60 36 366 33 900 9 45 . . 9 . . 81 . 87 . . 18 18 9 . 4 17 . 245 143 20 12 4 122 . Effects 21 | . . . . . 12 . . . . . . . . . . . . . . . . . . . 5 . . . 3 . 1 Shutdowns 2 | . . . . . 2 . . . . . . . . . . . . . . . . . . . . . . . . . . Energy Bleed 4 | . . . . . 3 . . . . . . . . . . . . . . . . . . . . . . . . . 1 Interference 11 | . . . . . 5 . . . . . . . . . . . . . . . . . . . 3 . . . 3 . . Short Circuit 1 | . . . . . 1 . . . . . . . . . . . . . . . . . . . . . . . . . . Damage (minor) 3 | . . . . . 1 . . . . . . . . . . . . . . . . . . . 2 . . . . . . Siege Activations 48 | . . . . . . . . . . . . . . . . . . . . . . . . . 16 12 3 6 2 5 4 Total Turns 521 | . . . . . . . . . . . . . . . . . . . . . . . . . 130 76 19 33 45 142 76 Longest Duration 58 | . . . . . . . . . . . . . . . . . . . . . . . . . 16 21 13 15 37 58 32 Martial Activations . | . . . . . . . . . . . . . . . . . . . . . . . . . . . . . . . . Shielding Activations . | . . . . . . . . . . . . . . . . . . . . . . . . . . . . . . . . Robots Disrupted 1 | . . . . . . . . . . . . . . . . . . . . . . . . . . . . . . 1 . Combat Hostiles 1 | . . . . . . . . . . . . . . . . . . . . . . . . . . . . . . 1 . Robots Corrupted 33 | . . . . . . . . . . . . . . . 8 4 . 1 . . . . . . 10 . . . 1 9 . Combat Hostiles 31 | . . . . . . . . . . . . . . . 7 4 . . . . . . . . 10 . . . 1 9 . Parts Fried 66 | . . . . . . . . . . 1 . . . . 8 4 . 2 . . . . . . 30 . . . 1 20 . Impact Corruptions 1 | . . . . . . . . . . . . . . . . . . . . . . . . . . 1 . . . . . Robots Melted 3 | . . . . . . . . . . . . . . . 1 . . . . . . . . . . . . . 1 . 1 Combat Hostiles 3 | . . . . . . . . . . . . . . . 1 . . . . . . . . . . . . . 1 . 1 Parts Melted 23 | . . . 1 5 9 3 1 . . . . . 2 . 1 . . . . . . . . . . . . . . . 1 Heat Transferred 10131 | 222 . . 296 555 3603 550 861 . . 250 . . 400 296 481 . . . . . . . . 37 50 . . . 450 312 1768 Parts Sabotaged . | . . . . . . . . . . . . . . . . . . . . . . . . . . . . . . . . Parts Stolen . | . . . . . . . . . . . . . . . . . . . . . . . . . . . . . . . . Parts Stripped 18 | . . . . . . . . . . . . . . . . . . . . . . . . . 18 . . . . . . Power Chain Reactions 8 | . . . . . . . . . . 2 . . . . 4 . . . . . . . . . 1 . . . . 1 . Alert | -11 -10 -10 -9 -9 -8 -8 -8 -8 -6 -6 -6 -6 -5 -5 -5 -5 -5 -5 -4 -4 -4 -4 -3 -3 -3 -3 -2 -2 -1 -1 -1 ------- Run | Yrd Mat Min Mat Min Mat Sto Rec Scr Fac Low Low Dat Pro Fac Ext Cet Arc Hub Fac Upp Upp War Pro Res Qua Sec Res Tes Acc Com Ac0 Maximum Alert Level 3 | . . . . . 1 1 1 . . . . . . . 3 2 1 2 1 . . . . . 1 3 2 1 1 2 . Low Security (%) 52 | 100 100 100 100 100 66 56 67 . 100 . . . . 100 18 . . 97 10 . . . . 100 99 23 32 69 57 6 . Level 1 15 | . . . . . 33 43 32 . . . . . . . 38 . 100 . 89 . . . . . . 15 . 30 42 8 . Level 2 30 | . . . . . . . . . . . . . . . 41 100 . 2 . . . . . . . 30 67 . . 85 . Level 3 1 | . . . . . . . . . . . . . . . 2 . . . . . . . . . . 30 . . . . . Level 4 . | . . . . . . . . . . . . . . . . . . . . . . . . . . . . . . . . Level 5 . | . . . . . . . . . . . . . . . . . . . . . . . . . . . . . . . . High Security . | . . . . . . . . . . . . . . . . . . . . . . . . . . . . . . . . Max Security . | . . . . . . . . . . . . . . . . . . . . . . . . . . . . . . . . Peak Influence 821 | 10 132 61 160 89 278 241 251 . 14 . . . . 49 821 649 354 525 348 . . . . 24 210 786 544 395 291 440 . Initial 459 | . . 22 . 35 . 59 60 . . . . . . 49 . 459 237 83 257 . . . . . . 27 425 40 222 146 . Average 164 | 1 56 6 71 18 156 170 152 . 1 . . . . 12 379 564 312 112 261 . . . . 1 73 465 347 147 192 226 . Influence Increases 12577 | 25 434 140 542 161 750 378 633 . 27 105 . . 255 73 1725 340 347 514 466 40 . 468 150 68 1005 1157 322 911 453 960 128 Destroy 0b10 Robot/C 5920 | . 280 100 360 120 460 160 260 . . 100 . . 160 20 680 160 80 20 80 . . 300 140 . 500 580 180 440 200 540 . Destroy 0b10 Robot/NC 750 | 25 45 . 45 . 60 25 70 . . 5 . . . 5 50 10 45 20 40 10 . 15 . 10 15 35 . 55 70 95 . Destroy Leader 1050 | . 58 20 78 20 120 38 . . . . . . 20 . 66 . . 12 14 . . . 10 4 166 140 50 74 70 90 . Allied During Kill 1138 | . . 5 . . . 131 183 . . . . . . . 286 170 118 52 70 . . 123 . . . . . . . . . Successful Hack 377 | . . . 14 6 17 23 47 . 27 . . . . 17 4 . . 24 47 . . . . 38 32 16 29 18 14 4 . Select Force Hacks 60 | . . . . . . . 60 . . . . . . . . . . . . . . . . . . . . . . . . Disable Machine 930 | . 15 . 30 . 15 . . . . . . . . 15 45 . 60 135 75 . . . . . 195 120 15 135 . 60 15 Destroy Structure 1392 | . 6 . . . 3 1 13 . . . . . . 16 84 . 44 236 110 . . . . 16 82 206 48 189 99 126 113 Partial Spotted 75 | . . . 15 . . . . . . . . . . . 30 . . 15 15 . . . . . . . . . . . . Lose Combat Pursuer 885 | . 30 15 . 15 75 . . . . . . . 75 . 480 . . . 15 30 . 30 . . 15 60 . . . 45 . Influence Decreases 12449 | 25 376 198 451 252 610 363 669 119 27 72 33 . 176 150 906 568 702 225 684 321 28 242 376 68 957 449 1005 613 595 621 568 Entered New Map 3101 | . . 36 . 56 . 81 95 119 . . 7 . . 30 2 362 356 155 270 115 6 . 226 . . 21 331 33 149 83 568 Time Decay 7696 | 25 376 142 401 196 500 222 474 . 21 72 26 . 136 120 504 206 286 50 334 206 22 182 150 68 631 428 374 580 446 518 . Search Patrol Dispatched 100 | . . . . . . . . . . . . . . . 100 . . . . . . . . . . . . . . . . Lost Part 220 | . . . 50 . 110 . . . . . . . 20 . 20 . . . . . . . . . . . . . . 20 . Lost Ally 706 | . . 20 . . . 60 100 . 6 . . . 20 . 280 . 60 20 80 . . 60 . . . . . . . . . Purge Threat 626 | . . . . . . . . . . . . . . . . . . . . . . . . . 326 . 300 . . . . Squads Dispatched 51 | . 2 . 2 . 4 . . . 2 . . . 1 2 2 . . . 4 . . . . 3 5 7 3 7 4 3 . Investigation 7 | . . . . . . . . . 2 . . . . . . . . . . . . . . 1 1 . 1 1 1 . . Extermination 18 | . . . . . . . . . . . . . . 1 . . . . 1 . . . . . 2 2 2 4 3 3 . Reinforcement 16 | . 2 . 2 . 1 . . . . . . . . 1 1 . . . 3 . . . . 2 . 2 . 2 . . . Assault 4 | . . . . . . . . . . . . . 1 . 1 . . . . . . . . . 2 . . . . . . Garrison 6 | . . . . . 3 . . . . . . . . . . . . . . . . . . . . 3 . . . . . Intercept . | . . . . . . . . . . . . . . . . . . . . . . . . . . . . . . . . Searches Triggered 1 | . . . . . . . . . . . . . . . 1 . . . . . . . . . . . . . . . . Unchained Authorized 1 | . . . . . . . . . . . . . . . . . . . . . . . . . . . 1 . . . . Construction Impeded 2 | . . . . . . . . . . . . . . . 1 . . . 1 . . . . . . . . . . . . Haulers Reinforced . | . . . . . . . . . . . . . . . . . . . . . . . . . . . . . . . . Active Scanning Responses . | . . . . . . . . . . . . . . . . . . . . . . . . . . . . . . . . Cargo Convoy Interrupts . | . . . . . . . . . . . . . . . . . . . . . . . . . . . . . . . . Stealth | -11 -10 -10 -9 -9 -8 -8 -8 -8 -6 -6 -6 -6 -5 -5 -5 -5 -5 -5 -4 -4 -4 -4 -3 -3 -3 -3 -2 -2 -1 -1 -1 --------- Run | Yrd Mat Min Mat Min Mat Sto Rec Scr Fac Low Low Dat Pro Fac Ext Cet Arc Hub Fac Upp Upp War Pro Res Qua Sec Res Tes Acc Com Ac0 Distress Signals 51 | . 5 1 3 . 4 2 . . . . . . . . 1 2 . . 2 . . 1 . 5 . 2 . . . 23 . Communications Jammed 30 | . . . . . . . . . . . . . . . . . . . . . . . . . 1 . . 11 12 6 . Distress Signals 26 | . . . . . . . . . . . . . . . . . . . . . . . . . . . . 10 10 6 . Times Spotted 506 | . 23 8 32 7 44 7 11 4 . 4 . . 14 4 54 9 21 3 5 2 . 44 10 3 29 41 11 31 21 35 29 Peak Tracking Total 14 | . 4 4 7 4 6 3 4 4 . 5 . . 7 2 7 5 1 1 2 2 . 14 5 2 4 7 3 3 4 6 7 Tactical Retreats 35 | . 2 1 . 1 4 . . . . . . . 3 . 13 . . . 1 2 . 2 . . 1 4 . . . 1 . Traps | -11 -10 -10 -9 -9 -8 -8 -8 -8 -6 -6 -6 -6 -5 -5 -5 -5 -5 -5 -4 -4 -4 -4 -3 -3 -3 -3 -2 -2 -1 -1 -1 ------- Run | Yrd Mat Min Mat Min Mat Sto Rec Scr Fac Low Low Dat Pro Fac Ext Cet Arc Hub Fac Upp Upp War Pro Res Qua Sec Res Tes Acc Com Ac0 Traps Triggered 18 | . . . . . 2 . . . . . . . . 1 1 . . . 1 . . . . . 3 2 1 4 1 2 . Indirectly . | . . . . . . . . . . . . . . . . . . . . . . . . . . . . . . . . Trap Hack Attempts . | . . . . . . . . . . . . . . . . . . . . . . . . . . . . . . . . Triggered . | . . . . . . . . . . . . . . . . . . . . . . . . . . . . . . . . Disarmed . | . . . . . . . . . . . . . . . . . . . . . . . . . . . . . . . . Reprogrammed . | . . . . . . . . . . . . . . . . . . . . . . . . . . . . . . . . Reused . | . . . . . . . . . . . . . . . . . . . . . . . . . . . . . . . . Traps Extracted . | . . . . . . . . . . . . . . . . . . . . . . . . . . . . . . . . Installed . | . . . . . . . . . . . . . . . . . . . . . . . . . . . . . . . . Triggered . | . . . . . . . . . . . . . . . . . . . . . . . . . . . . . . . . Machines | -11 -10 -10 -9 -9 -8 -8 -8 -8 -6 -6 -6 -6 -5 -5 -5 -5 -5 -5 -4 -4 -4 -4 -3 -3 -3 -3 -2 -2 -1 -1 -1 ---------- Run | Yrd Mat Min Mat Min Mat Sto Rec Scr Fac Low Low Dat Pro Fac Ext Cet Arc Hub Fac Upp Upp War Pro Res Qua Sec Res Tes Acc Com Ac0 Machines Disabled 66 | . 1 . 2 . 1 . . . . . . . . 1 5 . 4 9 5 . 1 . . . 13 8 1 10 . 4 1 Max in Single Turn 9 | . 1 . 1 . 1 . . . . . . . . 1 1 . 1 9 2 . 1 . . . 2 2 1 1 . 1 1 Garrison Access 2 | . . . . . . . . . . . . . . . . . . . . . . . . . 1 . . 1 . . . Network Hub 1 | . . . . . . . . . . . . . . . . . . 1 . . . . . . . . . . . . . Machines Repaired . | . . . . . . . . . . . . . . . . . . . . . . . . . . . . . . . . Machines Dismantled . | . . . . . . . . . . . . . . . . . . . . . . . . . . . . . . . . Machines Sabotaged . | . . . . . . . . . . . . . . . . . . . . . . . . . . . . . . . . Overloaded Fab Kills . | . . . . . . . . . . . . . . . . . . . . . . . . . . . . . . . . Hacking | -11 -10 -10 -9 -9 -8 -8 -8 -8 -6 -6 -6 -6 -5 -5 -5 -5 -5 -5 -4 -4 -4 -4 -3 -3 -3 -3 -2 -2 -1 -1 -1 --------- Run | Yrd Mat Min Mat Min Mat Sto Rec Scr Fac Low Low Dat Pro Fac Ext Cet Arc Hub Fac Upp Upp War Pro Res Qua Sec Res Tes Acc Com Ac0 Machines Accessed 109 | . 6 1 6 1 9 5 8 7 8 . . 4 . 6 2 . . 2 8 . . 4 . 7 9 2 3 6 2 3 . Terminals 64 | . 5 1 3 1 5 5 6 . 4 . . . . 3 2 . . 1 4 . . . . 5 6 2 2 4 2 3 . Fabricators 6 | . . . . . . . . . 2 . . . . 2 . . . . 1 . . . . . . . . 1 . . . Repair Stations 3 | . . . 1 . 1 . . . . . . . . . . . . . 1 . . . . . . . . . . . . Recycling Units 7 | . 1 . 1 . 1 . 2 . 1 . . . . . . . . . . . . . . 1 . . . . . . . Scanalyzers 8 | . . . 1 . 1 . . . 1 . . . . 1 . . . . 1 . . . . 1 2 . . . . . . Garrison Access 6 | . . . . . 1 . . . . . . . . . . . . 1 1 . . . . . 1 . 1 1 . . . Total Hacks 345 | . 13 2 16 2 23 12 26 44 24 . . 28 . 11 2 . . 4 22 . . 13 . 17 33 6 10 21 8 8 . Successful 164 | . 4 . 6 1 9 5 9 44 9 . . 28 . 2 1 . . 1 8 . . 13 . 4 6 1 5 6 1 1 . Failed 178 | . 9 2 9 1 13 7 17 . 15 . . . . 9 1 . . 3 13 . . . . 13 27 5 5 15 7 7 . Catastrophic 39 | . 3 . . . . . 5 . 3 . . . . 3 1 . . . 3 . . . . 1 8 1 3 4 2 2 . Database Lockouts 3 | . . . 1 . 1 . . . . . . . . . . . . . 1 . . . . . . . . . . . . Manual 140 | . 12 2 7 2 8 9 20 . 10 . . . . 4 1 1 . 2 9 . . 1 . 9 12 5 6 8 8 4 . Terminals 183 | . 12 2 7 2 14 12 20 . 13 . . . . 6 2 . . 2 13 . . . . 11 21 6 9 15 8 8 . Fabricators 15 | . . . . . . . . . 6 . . . . 3 . . . . 1 . . . . . . . . 5 . . . Repair Stations 8 | . . . 4 . 2 . . . . . . . . . . . . . 2 . . . . . . . . . . . . Recycling Units 17 | . 1 . 3 . 2 . 6 . 2 . . . . . . . . . . . . . . 3 . . . . . . . Scanalyzers 24 | . . . 2 . 3 . . . 3 . . . . 2 . . . . 4 . . . . 3 7 . . . . . . Garrison Access 13 | . . . . . 2 . . . . . . . . . . . . 2 2 . . . . . 5 . 1 1 . . . Terminal Hacks 118 | . . . . 1 5 3 5 44 2 . . 28 . 1 1 . . . 3 . . 13 . 1 6 . 3 1 . 1 . Record 57 | . . . . . . . . 38 . . . 11 . . . . . . . . . 8 . . . . . . . . . Part Schematic 11 | . . . . . . . . . . . . 10 . . . . . . . . . . . . . . . 1 . . . Robot Schematic 5 | . . . . . . . 1 . . . . 4 . . . . . . . . . . . . . . . . . . . Robot Analysis 9 | . . . . 1 . . 3 5 . . . . . . . . . . . . . . . . . . . . . . . Prototype ID Bank 9 | . . . . . . . 1 . . . . 3 . 1 . . . . . . . 4 . . . . . . . . . Open Door 3 | . . . . . . 1 . . . . . . . . . . . . . . . 1 . . . . . . . 1 . Branch Access Points 3 | . . . . . 1 . . . 1 . . . . . . . . . 1 . . . . . . . . . . . . Terminal Index 1 | . . . . . . 1 . . . . . . . . . . . . . . . . . . . . . . . . . Unreport Threat 5 | . . . . . . . . . . . . . . . . . . . . . . . . . 3 . 2 . . . . Locate Traps 8 | . . . . . 2 . . . 1 . . . . . 1 . . . 1 . . . . 1 2 . . . . . . Registered Components 1 | . . . . . . . . . . . . . . . . . . . 1 . . . . . . . . . . . . Zone Layout 5 | . . . . . 2 1 . . . . . . . . . . . . . . . . . . 1 . 1 . . . . Proto ID Catalog 1 | . . . . . . . . 1 . . . . . . . . . . . . . . . . . . . . . . . Fabricator Hacks 3 | . . . . . . . . . 1 . . . . . . . . . . . . . . . . . . 2 . . . Network Status 1 | . . . . . . . . . 1 . . . . . . . . . . . . . . . . . . . . . . Load Schematic 1 | . . . . . . . . . . . . . . . . . . . . . . . . . . . . 1 . . . Build 1 | . . . . . . . . . . . . . . . . . . . . . . . . . . . . 1 . . . Repair Station Hacks 6 | . . . 2 . 2 . . . . . . . . . . . . . 2 . . . . . . . . . . . . Scan Component 3 | . . . 1 . 1 . . . . . . . . . . . . . 1 . . . . . . . . . . . . Repair 3 | . . . 1 . 1 . . . . . . . . . . . . . 1 . . . . . . . . . . . . Recycling Unit Hacks 3 | . 1 . 1 . . . . . . . . . . . . . . . . . . . . 1 . . . . . . . Retrieve Components 3 | . 1 . 1 . . . . . . . . . . . . . . . . . . . . 1 . . . . . . . Scanalyzer 9 | . . . 1 . 1 . . . 3 . . . . 1 . . . . 2 . . . . 1 . . . . . . . Insert Component 3 | . . . . . . . . . 3 . . . . . . . . . . . . . . . . . . . . . . Retrieve Study 6 | . . . 1 . 1 . . . . . . . . 1 . . . . 2 . . . . 1 . . . . . . . Garrison Access Hacks 1 | . . . . . . . . . . . . . . . . . . . . . . . . . . . . 1 . . . Seal Access 1 | . . . . . . . . . . . . . . . . . . . . . . . . . . . . 1 . . . Unauthorized Hacks 24 | . 3 . 2 . 1 2 4 . 3 . . . . . . . . 1 1 . . . . 1 . 1 2 2 1 . . Terminals 21 | . 3 . 2 . 1 2 2 . 2 . . . . . . . . 1 1 . . . . 1 . 1 2 2 1 . . Track 1 | . . . . . . . . . . . . . . . . . . 1 . . . . . . . . . . . . . Botnet 17 | . 2 . 2 . 1 1 2 . 2 . . . . . . . . . 1 . . . . 1 . . 2 2 1 . . Disrupt 3 | . 1 . . . . 1 . . . . . . . . . . . . . . . . . . . 1 . . . . . Fabricators 1 | . . . . . . . . . 1 . . . . . . . . . . . . . . . . . . . . . . Fabnet 1 | . . . . . . . . . 1 . . . . . . . . . . . . . . . . . . . . . . Repair Stations . | . . . . . . . . . . . . . . . . . . . . . . . . . . . . . . . . Recycling Units 2 | . . . . . . . 2 . . . . . . . . . . . . . . . . . . . . . . . . Tunnel 2 | . . . . . . . 2 . . . . . . . . . . . . . . . . . . . . . . . . Scanalyzers . | . . . . . . . . . . . . . . . . . . . . . . . . . . . . . . . . Garrison Access . | . . . . . . . . . . . . . . . . . . . . . . . . . . . . . . . . Data Cores Recovered . | . . . . . . . . . . . . . . . . . . . . . . . . . . . . . . . . Used . | . . . . . . . . . . . . . . . . . . . . . . . . . . . . . . . . Hacking Detections 87 | . 5 1 5 1 7 6 7 . 8 . . . . 6 1 . . 2 7 . . . . 7 9 2 3 5 2 3 . Full Trace Events 12 | . . . . . 1 . 4 . 2 . . . . . . . . . . . . . . 1 1 . 1 1 1 . . Feedback Events 1 | . . . . . 1 . . . . . . . . . . . . . . . . . . . . . . . . . . Corruption 1 | . . . . . 1 . . . . . . . . . . . . . . . . . . . . . . . . . . Feedback Blocked . | . . . . . . . . . . . . . . . . . . . . . . . . . . . . . . . . Robot Schematics Acquired 5 | . . . . . . . 1 . . . . 4 . . . . . . . . . . . . . . . . . . . Robots Built . | . . . . . . . . . . . . . . . . . . . . . . . . . . . . . . . . Authchips . | . . . . . . . . . . . . . . . . . . . . . . . . . . . . . . . . Time . | . . . . . . . . . . . . . . . . . . . . . . . . . . . . . . . . Total Robot Build Rating . | . . . . . . . . . . . . . . . . . . . . . . . . . . . . . . . . Part Schematics Acquired 11 | . . . . . . . . . . . . 10 . . . . . . . . . . . . . . . 1 . . . Parts Built 1 | . . . . . . . . . . . . . . . . . . . . . . . . . . . . 1 . . . Authchips . | . . . . . . . . . . . . . . . . . . . . . . . . . . . . . . . . Time 95 | . . . . . . . . . . . . . . . . . . . . . . . . . . . . 95 . . . Total Part Build Rating 5 | . . . . . . . . . . . . . . . . . . . . . . . . . . . . 5 . . . Part Studies Acquired 6 | . . . 1 . 1 . . . . . . . . 1 . . . . 2 . . . . 1 . . . . . . . Parts Repaired 3 | . . . 1 . 1 . . . . . . . . . . . . . 1 . . . . . . . . . . . . Time 140 | . . . 38 . 32 . . . . . . . . . . . . . 70 . . . . . . . . . . . . Parts Recycled . | . . . . . . . . . . . . . . . . . . . . . . . . . . . . . . . . Recycled Matter . | . . . . . . . . . . . . . . . . . . . . . . . . . . . . . . . . Retrieved Matter . | . . . . . . . . . . . . . . . . . . . . . . . . . . . . . . . . Retrieved Components 17 | . 6 . 9 . . . . . . . . . . . . . . . . . . . . 2 . . . . . . . Parts Scanalyzed . | . . . . . . . . . . . . . . . . . . . . . . . . . . . . . . . . Part Schematics Acquired . | . . . . . . . . . . . . . . . . . . . . . . . . . . . . . . . . Parts Damaged . | . . . . . . . . . . . . . . . . . . . . . . . . . . . . . . . . Bothacking | -11 -10 -10 -9 -9 -8 -8 -8 -8 -6 -6 -6 -6 -5 -5 -5 -5 -5 -5 -4 -4 -4 -4 -3 -3 -3 -3 -2 -2 -1 -1 -1 ------------ Run | Yrd Mat Min Mat Min Mat Sto Rec Scr Fac Low Low Dat Pro Fac Ext Cet Arc Hub Fac Upp Upp War Pro Res Qua Sec Res Tes Acc Com Ac0 Used RIF Installer . | . . . . . . . . . . . . . . . . . . . . . . . . . . . . . . . . Robots Hacked 4 | . . . . . . . . . . . . . 2 1 . . . . . . . 1 . . . . . . . . . Non-combat . | . . . . . . . . . . . . . . . . . . . . . . . . . . . . . . . . Combat 4 | . . . . . . . . . . . . . 2 1 . . . . . . . 1 . . . . . . . . . Robot Hacks Applied . | . . . . . . . . . . . . . . . . . . . . . . . . . . . . . . . . Relay Couplers Released 4 | . . . . . . . . . . . . . . . . . . . . . . . . . 4 . . . . . . Programmers 4 | . . . . . . . . . . . . . . . . . . . . . . . . . 4 . . . . . . Fabnet Peak Effective % 3 | . . . . . . . . . . . . . 3 3 3 3 3 3 1 1 1 1 . . . . . . . . . Autooverrided 4 | . . . . . . . . . . . . . 2 1 . . . . . . . 1 . . . . . . . . . Robots Rewired 42 | . . . . . . . 16 . . . . . . . 21 . . . . . . 5 . . . . . . . . . Allies Hacked 2 | . . . . . . . 1 . . . . . . . . . . . . . . . 1 . . . . . . . . Hacks Repelled . | . . . . . . . . . . . . . . . . . . . . . . . . . . . . . . . . Allies | -11 -10 -10 -9 -9 -8 -8 -8 -8 -6 -6 -6 -6 -5 -5 -5 -5 -5 -5 -4 -4 -4 -4 -3 -3 -3 -3 -2 -2 -1 -1 -1 -------- Run | Yrd Mat Min Mat Min Mat Sto Rec Scr Fac Low Low Dat Pro Fac Ext Cet Arc Hub Fac Upp Upp War Pro Res Qua Sec Res Tes Acc Com Ac0 Total Allies 72 | . . 3 . . . 10 16 . . . . . 2 1 29 5 . . . . . 6 . . . . . . . . . Largest Group 17 | . . 3 . . . 10 17 16 14 2 2 1 2 1 12 17 16 13 5 . . 6 1 . . . . . . . . Highest-Rated Group 924 | . . 40 . . . 173 255 247 209 15 15 5 29 49 452 924 773 708 480 . . 334 57 . . . . . . . . Highest-Rated Ally 159 | . . 16 . . . 29 34 29 29 10 10 5 29 49 159 159 96 96 96 . . 64 57 . . . . . . . . Initial UFD Resources 37 | . . . . . . . . . 24 24 24 24 26 26 26 26 26 26 30 30 30 30 33 33 33 33 35 35 37 37 37 Total Orders 14 | . . 4 . . . . . . . . . . . . 4 4 2 . . . . . . . . . . . . . . STAY 8 | . . 3 . . . . . . . . . . . . 2 2 1 . . . . . . . . . . . . . . FOLLOW 6 | . . 1 . . . . . . . . . . . . 2 2 1 . . . . . . . . . . . . . . Ally Attacks 457 | . . 12 . . . 51 46 . 17 . . . 7 . 108 17 32 6 56 . . 105 . . . . . . . . . Total Damage 11039 | . . 181 . . . 574 1180 . 262 . . . 71 . 2170 439 835 181 2245 . . 2901 . . . . . . . . . Kills 68 | . . 3 . . . 6 11 . . . . . . . 19 4 4 1 9 . . 11 . . . . . . . . . Allies Corrupted 3 | . . . . . . . . . . . . . . . 1 . . 1 1 . . . . . . . . . . . . Allies Melted 1 | . . . . . . . . . . . . . . . . . . . . . . 1 . . . . . . . . . Intel | -11 -10 -10 -9 -9 -8 -8 -8 -8 -6 -6 -6 -6 -5 -5 -5 -5 -5 -5 -4 -4 -4 -4 -3 -3 -3 -3 -2 -2 -1 -1 -1 ------- Run | Yrd Mat Min Mat Min Mat Sto Rec Scr Fac Low Low Dat Pro Fac Ext Cet Arc Hub Fac Upp Upp War Pro Res Qua Sec Res Tes Acc Com Ac0 Active Infowar (turns) 33460 | 91 1318 1359 676 955 566 477 1201 1823 392 580 633 55 724 333 2038 420 623 118 748 429 438 1123 684 885 5082 1243 879 1790 1114 4509 154 Optics 24713 | . . . . . . . . . 380 580 633 55 724 333 2038 420 623 118 748 429 438 1123 684 885 5082 1243 879 1790 1114 4394 . Sensors 18950 | . . . . . 412 477 1201 1823 392 536 633 55 655 333 1927 420 273 118 748 429 438 60 661 880 4042 194 . 1128 1114 1 . Terrain 2925 | . . . . . . . . . . . . . . . . . . . . . . . . 880 69 . . 214 1026 582 154 Seismic 4553 | 91 1318 1359 676 955 154 . . . . . . . . . . . . . . . . . . . . . . . . . . Jamming 7686 | . . . . . . . . . . . . . . . . . . . . . . . . . 855 151 670 1790 1114 3106 . Robot Analysis Total 9 | . . . . 1 . . 3 5 . . . . . . . . . . . . . . . . . . . . . . . Derelict Logs Recovered 7 | . . 1 . 1 . . . . . 2 . . 1 . . . . . . 1 1 . . . . . . . . . . Drone Launches . | . . . . . . . . . . . . . . . . . . . . . . . . . . . . . . . . Drone Recoveries . | . . . . . . . . . . . . . . . . . . . . . . . . . . . . . . . . Exploration | -11 -10 -10 -9 -9 -8 -8 -8 -8 -6 -6 -6 -6 -5 -5 -5 -5 -5 -5 -4 -4 -4 -4 -3 -3 -3 -3 -2 -2 -1 -1 -1 ------------- Run | Yrd Mat Min Mat Min Mat Sto Rec Scr Fac Low Low Dat Pro Fac Ext Cet Arc Hub Fac Upp Upp War Pro Res Qua Sec Res Tes Acc Com Ac0 Turns Passed 40000 | 151 1426 1434 1105 955 1582 477 1211 1823 392 580 633 55 724 333 2038 420 623 118 748 429 438 1123 684 885 5082 1243 879 1790 1114 9139 366 Spaces Moved 24740 | 68 694 647 436 601 728 303 776 1558 563 887 940 88 666 483 1650 260 459 123 998 675 760 916 457 705 2644 527 452 877 591 3068 140 Core 149 | 4 . . . . . . . . . . . . . . . . . . . . . . . . . . . . . 85 60 Treads 8212 | 57 226 . . . 7 . . . . . . . . . . . . . . . . . . . 2412 527 452 877 591 2983 80 Legs 1665 | . . . . . . . . . . . . . . . . . . . . . . 271 457 705 232 . . . . . . Wheels 5517 | 7 468 647 436 601 721 303 776 1558 . . . . . . . . . . . . . . . . . . . . . . . Hover 9197 | . . . . . . . . . 563 887 940 88 666 483 1650 260 459 123 998 675 760 645 . . . . . . . . . Flight . | . . . . . . . . . . . . . . . . . . . . . . . . . . . . . . . . Fastest Speed 42 | 50 110 130 130 150 115 115 115 115 48 58 58 58 58 52 52 52 48 48 44 44 48 42 105 102 102 158 158 155 155 155 50 Average Speed 120 | 146 158 135 151 150 123 115 115 115 53 59 58 58 67 52 52 52 51 48 54 47 48 89 105 104 153 158 159 155 155 243 112 Slowest Speed 3250 | 160 240 145 170 150 400 115 115 115 58 114 58 58 114 160 110 52 105 48 103 48 48 176 105 105 245 158 245 158 155 3250 160 Overloaded Moves . | . . . . . . . . . . . . . . . . . . . . . . . . . . . . . . . . Propulsion Burnouts . | . . . . . . . . . . . . . . . . . . . . . . . . . . . . . . . . Robots Hopped . | . . . . . . . . . . . . . . . . . . . . . . . . . . . . . . . . Potential Cave-ins 2 | . . . . . . . . . . . 2 . . . . . . . . . . . . . . . . . . . . Cave-ins Triggered . | . . . . . . . . . . . . . . . . . . . . . . . . . . . . . . . . Teleports 1 | . . . . . . . . . . . . . . . . . . . . . . . . . . . . . . 1 . Exploration Rate (%) 59 | 4 83 87 34 99 42 36 99 95 16 97 87 76 71 13 90 69 95 19 28 70 85 91 57 20 96 25 12 85 21 76 15 Regions Visited 31 Branch Regions 22 Pre-discovered Areas 5 | . . . . . . . 2 . . . . 1 1 . . . . . . 1 . . . . . . . . . . . Known Exits Taken 25 | . . . . . 1 1 1 1 1 1 1 1 1 1 1 1 1 1 1 1 1 1 1 1 1 1 1 1 1 . . Unknown Exits Taken 6 | 1 1 1 1 1 . . . . . . . . . . . . . . . . . . . . . . . . . 1 . Scrap Searched 21 | . . 1 . 1 . . . 5 . 5 2 . 3 . . . . . . 2 1 . 1 . . . . . . . . Spaces Dug 136 | . . . . . . . . . . . 8 . 4 6 2 . . . 7 . 21 4 8 5 19 7 . 19 10 16 . Terrain Destroyed 892 | . 4 . . . . . . . . 21 23 . 20 8 36 . 33 182 25 7 29 12 39 10 65 120 17 67 36 109 29 Melee . | . . . . . . . . . . . . . . . . . . . . . . . . . . . . . . . . Projectile 588 | . . . . . . . . . . . 23 . 20 8 13 . 33 12 25 7 28 12 38 10 58 44 17 67 36 108 29 AOE 301 | . 4 . . . . . . . . 21 . . . . 23 . . 170 . . . . . . 7 76 . . . . . Terrain Rammed . | . . . . . . . . . . . . . . . . . . . . . . . . . . . . . . . . Walls Destroyed . | . . . . . . . . . . . . . . . . . . . . . . . . . . . . . . . . Machines Disabled . | . . . . . . . . . . . . . . . . . . . . . . . . . . . . . . . . Actions | -11 -10 -10 -9 -9 -8 -8 -8 -8 -6 -6 -6 -6 -5 -5 -5 -5 -5 -5 -4 -4 -4 -4 -3 -3 -3 -3 -2 -2 -1 -1 -1 --------- Run | Yrd Mat Min Mat Min Mat Sto Rec Scr Fac Low Low Dat Pro Fac Ext Cet Arc Hub Fac Upp Upp War Pro Res Qua Sec Res Tes Acc Com Ac0 Total 33042 | 97 926 1183 748 636 1168 411 1067 1590 654 933 1003 91 890 537 2682 524 758 167 1164 765 799 1179 620 842 3527 815 581 1195 720 4453 317 Wait 5355 | 3 118 513 181 22 188 88 126 16 51 27 34 4 180 11 620 221 230 36 91 79 18 123 142 103 597 176 67 199 48 1014 29 Move 24709 | 67 693 646 435 600 727 302 775 1557 562 886 939 87 665 482 1649 259 458 122 997 674 759 915 456 704 2643 526 451 876 590 3067 140 Hop . | . . . . . . . . . . . . . . . . . . . . . . . . . . . . . . . . Pick Up 273 | 8 26 2 15 1 26 2 4 4 9 4 1 . 1 6 12 6 . 1 9 . 1 16 . 11 41 6 10 10 4 31 6 Fast Attach 114 | 7 . . 2 . 16 . . 1 2 . . . 2 6 1 2 9 . 3 . 1 6 . . 20 1 2 5 2 21 5 Attach 82 | . . . 5 . 6 . . 1 5 . . . 2 3 7 1 . . 3 . 1 2 . 2 3 5 7 1 2 19 7 Detach 51 | . . . . . 3 . . . . . . . 2 1 4 3 . . . . . 1 . 1 7 3 4 . 2 15 5 Swap 374 | . 16 5 10 1 31 4 3 5 7 9 4 . 9 1 12 5 12 . 11 5 6 20 4 5 67 23 10 15 13 49 12 Drop 341 | 2 19 5 14 2 38 3 7 6 16 4 2 . 1 8 9 6 8 1 13 . . 24 1 7 61 5 12 12 3 43 9 Fire 1263 | 10 54 12 86 10 133 10 14 . 2 3 23 . 28 19 116 21 38 7 24 7 13 22 16 9 84 70 18 77 56 177 104 Melee 14 | . . . . . . . . . . . . . . . . . 3 . . . . . . . 4 . . . . 7 . Ram . | . . . . . . . . . . . . . . . . . . . . . . . . . . . . . . . . Kick . | . . . . . . . . . . . . . . . . . . . . . . . . . . . . . . . . Crush . | . . . . . . . . . . . . . . . . . . . . . . . . . . . . . . . . Escape Stasis 27 | . . . . . . . . . . . . . . . 13 . . . 13 . . . . . . . . . . 1 . Rewire 439 | . . . . . . 2 138 . . . . . . . 239 . . . . . . 50 1 . . . . . . 9 . Trap . | . . . . . . . . . . . . . . . . . . . . . . . . . . . . . . . . Miscellaneous . | . . . . . . . . . . . . . . . . . . . . . . . . . . . . . . . . Route ------- -11/Scrapyard -10/Materials (discovered 4 exits: *Mat x2 / *Min x2) -10/Mines (discovered 3 exits: *Mat x2 / [*Exi]) -9/Materials -9/Mines (discovered 3 exits: *Mat x2 / [*Zio]) -8/Materials (discovered 3 exits: [*Fac x2] / *Sto) -8/Storage -8/Recycling (discovered 2 exits: *Fac / *Scr) -8/Scraptown (discovered 2 exits: *Fac x2) -6/Factory (discovered 2 exits: *Low x2) -6/Lower Caves -6/Lower Caves (discovered 2 exits: *Fac / *Dat) -6/Data Miner -5/Proximity Caves -5/Factory (discovered 2 exits: *Fac / *Ext) -5/Extension (discovered 2 exits: *Fac / *Cet) -5/Cetus (discovered 2 exits: *Fac / *Arc) -5/Archives (discovered 3 exits: *Fac / *Hub x2) -5/Hub_04(d) -4/Factory (discovered 4 exits: *Res / *Upp x2 / Arm) -4/Upper Caves -4/Upper Caves (discovered 2 exits: *Res / *War) -4/Warlord -3/Proximity Caves -3/Research (discovered 2 exits: *Res / *Qua) -3/Quarantine (discovered 3 exits: *Res / *Sec / [*Frg]) -3/Section 7 -2/Research (discovered 2 exits: *Tes x2) -2/Testing -1/Access -1/Command (discovered 3 exits: [*Sur x2] / [*Ac0]) -1/Access_0 History --------- Turn | Location | Event 26 | -11/Scrapyard | Discovered new exit (range 14) 152 | -11/Scrapyard | Entered Materials 249 | -10/Materials | Discovered new exit (range 14) 301 | -10/Materials | Build established: Mutant 759 | -10/Materials | Discovered new exit (range 16) 1379 | -10/Materials | Discovered new exit (range 4) 1401 | -10/Materials | Discovered new exit (range 13) 1578 | -10/Materials | Entered Mines 1603 | -10/Mines | Assembled infested the area 1608 | -10/Mines | Assisted by a Guerilla fighting off Assembled 1615 | -10/Mines | Assisted by bots powering up and referring to "LRC-V3" 1644 | -10/Mines | Met a Derelict bent on vengeance 2427 | -10/Mines | Discovered new exit (range 12) 2508 | -10/Mines | Discovered new exit (range 15) 2803 | -10/Mines | Learned Materials terminal intel 2879 | -10/Mines | A weapon hastily lodged in a ceiling crevice suddenly fell to the ground 2901 | -10/Mines | Deemed a non-threat by the Exiles lab entrance 2901 | -10/Mines | Discovered new exit (range 5) 3012 | -10/Mines | Entered Materials 3012 | -9/Materials | Evolved 2 slots: Utility x2 3013 | -9/Materials | Loaded intel: 12 terminal locations 3122 | -9/Materials | Central database locked down 3242 | -9/Materials | Destroyed 7 combat bots 3463 | -9/Materials | Build established: Scavenger-Mutant 3973 | -9/Materials | Repaired Imp. Heat Sink 4012 | -9/Materials | Discovered new exit (range 8) 4117 | -9/Materials | Entered Mines 4226 | -9/Mines | Build established: Mutant 4259 | -9/Mines | A Derelict revealed a hidden shortcut to a safe place 4433 | -9/Mines | Discovered new exit (range 8) 4694 | -9/Mines | Found a hidden stash of uninstalled traps 4754 | -9/Mines | Learned Materials stockpile data 4758 | -9/Mines | Discovered new exit (range 13) 5072 | -9/Mines | Entered Materials 5072 | -8/Materials | Evolved 2 slots: Propulsion x2 5595 | -8/Materials | Garrison activated, responded to threat 5728 | -8/Materials | Discovered new exit (range 15) 5901 | -8/Materials | Lost 4 parts (1p2n1u) 5978 | -8/Materials | Core integrity fell below 50% 5978 | -8/Materials | System corruption reached 10% 5990 | -8/Materials | Central database locked down 6039 | -8/Materials | Identified exit to Storage 6040 | -8/Materials | Build established: Scavenger-Mutant 6390 | -8/Materials | Repaired Arm. Wheel 6545 | -8/Materials | Discovered new exit (range 19) 6654 | -8/Materials | Entered Storage 6706 | -8/Storage | Assisted by bots powering up and referring to "LRC-V3" 7016 | -8/Storage | Build established: Commander-Mutant 7104 | -8/Storage | Used back door to open Recycling access 7104 | -8/Storage | Discovered new exit (range 3) 7105 | -8/Storage | Identified exit to Recycling 7131 | -8/Storage | Entered Recycling 7131 | -8/Recycling | Accompanied by 7 allies 7544 | -8/Recycling | Lost 5 allies 7884 | -8/Recycling | Discovered new exit (range 15) 7998 | -8/Recycling | Identified exit to Factory 8220 | -8/Recycling | Scanned before Scraplab entrance 8239 | -8/Recycling | Entered Scraplab 8248 | -8/Recycling | Discovered new exit (range 2) 8248 | -8/Recycling | Identified exit to Scraptown 8342 | -8/Recycling | Entered Scraptown 8342 | -8/Scraptown | Accompanied by 16 allies 8342 | -8/Scraptown | System corruption cleaned by C-Scrubber 8760 | -8/Scraptown | Visited Red Mages 8797 | -8/Scraptown | Heard Great Nut preacher, LISTEN AND RECITE! 8810 | -8/Scraptown | Visited Shadow of the Wyrm 8834 | -8/Scraptown | Visited The Evicted 8876 | -8/Scraptown | Visited TADAMA 9100 | -8/Scraptown | Discovered exit to Factory (range 5) 9216 | -8/Scraptown | Visited SPCMW 9269 | -8/Scraptown | Visited Awakened 9295 | -8/Scraptown | Visited Symbiants 9469 | -8/Scraptown | Visited UFD Registry 9469 | -8/Scraptown | Registered with UFD as "Quantumdome" 9489 | -8/Scraptown | Visited A0-MCA Data Center 9496 | -8/Scraptown | Given a B+ rating by A0-MCA 9501 | -8/Scraptown | Found Unknown Processor 9523 | -8/Scraptown | Visited Infowarlord's Domain 9528 | -8/Scraptown | Found Spectral Analyzer 9549 | -8/Scraptown | Visited Scrapoid Research Area 9583 | -8/Scraptown | Visited LU-1G1's Boring Crew 9751 | -8/Scraptown | Visited Derelict Rescue Squad 9780 | -8/Scraptown | Visited Analyses Database 9808 | -8/Scraptown | Visited Chapter 10 9843 | -8/Scraptown | Visited Abandonware Association 9851 | -8/Scraptown | Learned abandonware demo "OVRCLOCK.EXE" 9877 | -8/Scraptown | Visited Science Guys 9923 | -8/Scraptown | Visited Modified Component R&D 10025 | -8/Scraptown | Met Optimus 10025 | -8/Scraptown | Accepted into 0bPrime 10149 | -8/Scraptown | Discovered exit to Factory (range 5) 10155 | -8/Scraptown | Civil war broke out across Scraptown 10165 | -8/Scraptown | Entered Factory 10165 | -6/Factory | Accompanied by 14 allies 10165 | -6/Factory | Evolved 4 slots: Propulsion x1, Utility x2, Weapon x1 10196 | -6/Factory | Lost 3 allies 10390 | -6/Factory | Spotted B-75 Beast 10470 | -6/Factory | Identified exit to Lower Caves 10485 | -6/Factory | Identified A0-MCA's Component Scanner 10511 | -6/Factory | Build established: Commander-Scout 10557 | -6/Factory | Entered Lower Caves 10557 | -6/Lower Caves | Accompanied by 2 allies 10727 | -6/Lower Caves | Encountered a Warlord checkpoint 10761 | -6/Lower Caves | Learned Factory non-interactive machine intel 10859 | -6/Lower Caves | Build established: Scout 11014 | -6/Lower Caves | Discovered new exit (range 18) 11018 | -6/Lower Caves | Learned Factory garrison access intel 11111 | -6/Lower Caves | Identified exit to Lower Caves 11137 | -6/Lower Caves | Entered another Lower Caves area 11137 | -6/Lower Caves | Accompanied by 2 allies 11151 | -6/Lower Caves | Discovered new exit (range 15) 11458 | -6/Lower Caves | Spotted B-75 Beast 11698 | -6/Lower Caves | Discovered new exit (range 9) 11702 | -6/Lower Caves | Identified exit to Data Miner 11770 | -6/Lower Caves | Entered Data Miner 11770 | -6/Data Miner | Accompanied by 1 ally 11770 | -6/Data Miner | Discovered new exit (range 7) 11777 | -6/Data Miner | Met Data Miner 11793 | -6/Data Miner | Learned location of Section 7 (-3) 11793 | -6/Data Miner | Acquired the access code to Warlord's prototype stash 11802 | -6/Data Miner | Received God Mode back door access code from Data Miner 11820 | -6/Data Miner | Identified exit to Proximity Caves 11825 | -6/Data Miner | Entered Proximity Caves 11825 | -5/Proximity Caves | Accompanied by 1 ally 11942 | -5/Proximity Caves | Learned location of Warlord (-4) 12392 | -5/Proximity Caves | Attracted the attention of an 0b10 outpost 12542 | -5/Proximity Caves | Discovered new exit (range 11) 12548 | -5/Proximity Caves | Identified exit to Factory 12549 | -5/Proximity Caves | Entered Factory 12549 | -5/Factory | Evolved 2 slots: Propulsion x1, Utility x1 12550 | -5/Factory | Loaded intel: 229 non-interactive machine locations 12551 | -5/Factory | Loaded intel: 4 garrison access locations 12598 | -5/Factory | Discovered new exit (range 9) 12624 | -5/Factory | Identified exit to Factory 12680 | -5/Factory | Discovered new exit (range 19) 12881 | -5/Factory | Identified exit to Extension 12882 | -5/Factory | Entered Extension 13482 | -5/Extension | Search patrols dispatched 14017 | -5/Extension | Build established: Commander-Scout 14056 | -5/Extension | Rescued a captive Derelict 14056 | -5/Extension | Rescued a captive Derelict 14063 | -5/Extension | Rescued a captive Derelict 14063 | -5/Extension | Rescued a captive Derelict 14082 | -5/Extension | First assault squad dispatched 14112 | -5/Extension | Rescued a captive Derelict 14124 | -5/Extension | Spotted B-75 Beast 14176 | -5/Extension | Spotted B-75 Beast 14182 | -5/Extension | P-70 Sage assimilated allied SN-LBE(h) 14232 | -5/Extension | Lost 10 allies 14383 | -5/Extension | Destroyed B-75 Beast 14432 | -5/Extension | System corruption reached 10% 14438 | -5/Extension | Destroyed B-75 Beast 14477 | -5/Extension | Rescued a captive Derelict 14557 | -5/Extension | Rescued A7 14682 | -5/Extension | Disrupted transfer network 14707 | -5/Extension | Rescued a captive Derelict 14732 | -5/Extension | Build established: Scout 14829 | -5/Extension | Discovered exit to Factory (range 13) 14885 | -5/Extension | Discovered new exit (range 6) 14888 | -5/Extension | Identified exit to Cetus 14920 | -5/Extension | Entered Cetus 14920 | -5/Cetus | Accompanied by 12 allies (A7) 14925 | -5/Cetus | Acquired a Cetus Manufacturing Module code from A7 14939 | -5/Cetus | Spotted Cetus Guard 14940 | -5/Cetus | Spotted Cetus Guard 14948 | -5/Cetus | Destroyed Cetus Guard 14948 | -5/Cetus | Spotted Cetus Guard 14950 | -5/Cetus | Spotted Cetus Guard 14954 | -5/Cetus | Allies destroyed Cetus Guard 14959 | -5/Cetus | Destroyed Cetus Guard 14962 | -5/Cetus | Destroyed Cetus Guard 14993 | -5/Cetus | Started Cetus Manufacturing Module 15018 | -5/Cetus | Manufactured an Enhanced Grunt 15035 | -5/Cetus | Build established: Commander-Scout 15043 | -5/Cetus | Manufactured an Enhanced Grunt 15068 | -5/Cetus | Manufactured an Enhanced Grunt 15093 | -5/Cetus | Manufactured an Enhanced Grunt 15118 | -5/Cetus | Manufactured an Enhanced Grunt 15123 | -5/Cetus | Discovered new exit (range 24) 15138 | -5/Cetus | Identified exit to Archives 15204 | -5/Cetus | Spotted Cetus Guard 15204 | -5/Cetus | Spotted Cetus Guard 15208 | -5/Cetus | Spotted Cetus Guard 15210 | -5/Cetus | Allies destroyed Cetus Guard 15214 | -5/Cetus | Destroyed Cetus Guard 15219 | -5/Cetus | Allies destroyed Cetus Guard 15219 | -5/Cetus | Spotted Cetus Guard 15227 | -5/Cetus | Allies destroyed Cetus Guard 15250 | -5/Cetus | Discovered exit to Factory (range 23) 15257 | -5/Cetus | Met Revision 17 15340 | -5/Cetus | Entered Archives 15340 | -5/Archives | Accompanied by 17 allies (A7) 15383 | -5/Archives | Discovered new exit (range 20) 15390 | -5/Archives | Discovered new exit (range 23) 15405 | -5/Archives | Lost 3 allies 15498 | -5/Archives | Discovered exit to Factory (range 24) 15505 | -5/Archives | Identified exit to Hub_04(d) 15963 | -5/Archives | Entered Hub_04(d) 15963 | -5/Hub_04(d) | Accompanied by 13 allies 16031 | -5/Hub_04(d) | Discovered exit to Factory (range 16) 16078 | -5/Hub_04(d) | Network Hub disabled 16081 | -5/Hub_04(d) | Entered Factory 16081 | -4/Factory | Accompanied by 5 allies 16081 | -4/Factory | Evolved 2 slots: Utility x2 16110 | -4/Factory | Lost 6 allies 16244 | -4/Factory | Repaired Cld. Deuterium Engine 16407 | -4/Factory | Build established: Scavenger-Scout 16425 | -4/Factory | Discovered new exit (range 7) 16428 | -4/Factory | Identified exit to Research 16652 | -4/Factory | Identified exit to Upper Caves 16652 | -4/Factory | Identified exit to Armory 16694 | -4/Factory | Lost 3 allies 16752 | -4/Factory | Central database locked down 16829 | -4/Factory | Entered Upper Caves 16840 | -4/Upper Caves | Learned location of Testing (-2) 17184 | -4/Upper Caves | Discovered new exit (range 2) 17184 | -4/Upper Caves | Identified exit to Upper Caves 17258 | -4/Upper Caves | Entered another Upper Caves area 17277 | -4/Upper Caves | Discovered exit to Research (range 9) 17466 | -4/Upper Caves | Learned Research terminal intel 17645 | -4/Upper Caves | Found Alien Artifact 17645 | -4/Upper Caves | Identified Core Expander 17645 | -4/Upper Caves | Installed Core Expander, added new Weapon slot 17663 | -4/Upper Caves | Discovered new exit (range 16) 17671 | -4/Upper Caves | Identified exit to Warlord 17696 | -4/Upper Caves | Entered Warlord 17850 | -4/Warlord | Opened Warlord's prototype stash 17864 | -4/Warlord | Found Exp. Core Analyzer 17868 | -4/Warlord | Found Vortex Chain Reactor 17902 | -4/Warlord | Warlord's base attacked by MAIN.C 17907 | -4/Warlord | Found Vortex Shotgun 17909 | -4/Warlord | Found Vortex Shotgun 17913 | -4/Warlord | Found Vortex Driver 18104 | -4/Warlord | Rebuked by Warlord 18159 | -4/Warlord | Build established: Scavenger-Tank 18252 | -4/Warlord | Warlord forces counterattacked 18289 | -4/Warlord | Spotted Executioner 18300 | -4/Warlord | Allies destroyed Executioner 18324 | -4/Warlord | Lost 4 allies 18334 | -4/Warlord | Spotted Striker 18359 | -4/Warlord | Destroyed Striker 18437 | -4/Warlord | Lost 9 allies 18504 | -4/Warlord | Found System Purifier 18508 | -4/Warlord | System corruption reached 10% 18577 | -4/Warlord | Warlord base infiltrated, sounded retreat 18709 | -4/Warlord | Lost 3 allies 18747 | -4/Warlord | Spotted Executioner 18753 | -4/Warlord | Spotted Striker 18754 | -4/Warlord | Attached CPS modules to Executioner. 18759 | -4/Warlord | Attached CPS modules to Striker. 18770 | -4/Warlord | Destroyed Striker 18791 | -4/Warlord | Found Exp. Targeting Computer 18793 | -4/Warlord | Lost 7 allies 18802 | -4/Warlord | Spotted Executioner 18803 | -4/Warlord | Spotted B-86 Titan 18808 | -4/Warlord | Discovered new exit (range 9) 18816 | -4/Warlord | Identified exit to Proximity Caves 18819 | -4/Warlord | Entered Proximity Caves 18819 | -3/Proximity Caves | Accompanied by 1 ally 19071 | -3/Proximity Caves | Spotted B-86 Titan 19126 | -3/Proximity Caves | Build established: Scavenger-Skirmisher 19150 | -3/Proximity Caves | Attracted the attention of an 0b10 checkpoint 19487 | -3/Proximity Caves | Discovered exit to Research (range 7) 19503 | -3/Proximity Caves | Entered Research 19503 | -3/Research | Evolved 2 slots: Power x1, Utility x1 19504 | -3/Research | Loaded intel: 24 terminal locations 19703 | -3/Research | Revision forces began assault on 0b10 19709 | -3/Research | Found Fusion Bomb Launcher 19751 | -3/Research | Met up with Revision 17++ 19806 | -3/Research | Discovered new exit (range 17) 19827 | -3/Research | Identified exit to Research 19858 | -3/Research | Discovered new exit (range 8) 20120 | -3/Research | Found Centrium Heavy Armor Plating 20203 | -3/Research | Research terminal network offline 20365 | -3/Research | Identified exit to Quarantine 20388 | -3/Research | Entered Quarantine 20495 | -3/Quarantine | Cryocooling Duct disabled 20510 | -3/Quarantine | Ambient heat levels rising (+20) 20510 | -3/Quarantine | Non-combat units ordered to evacuate 20757 | -3/Quarantine | Found Alien Impact Weapon 20955 | -3/Quarantine | Build established: Scavenger-Tank 21310 | -3/Quarantine | Cryocooling Duct disabled 21325 | -3/Quarantine | Ambient heat levels rising (+20) 21325 | -3/Quarantine | Combat units ordered to evacuate 21425 | -3/Quarantine | Quarantine Guard activated 21564 | -3/Quarantine | Spotted Quarantine Guard 21889 | -3/Quarantine | Spotted Quarantine Guard 21906 | -3/Quarantine | Destroyed Quarantine Guard 22118 | -3/Quarantine | Spotted Quarantine Guard 22138 | -3/Quarantine | Destroyed Quarantine Guard 22194 | -3/Quarantine | Spotted Quarantine Guard 22208 | -3/Quarantine | Destroyed Quarantine Guard 22303 | -3/Quarantine | Spotted Quarantine Guard 22400 | -3/Quarantine | Spotted Quarantine Guard 22496 | -3/Quarantine | Destroyed Quarantine Guard 22627 | -3/Quarantine | Discovered exit to Research (range 14) 22627 | -3/Quarantine | Spotted Quarantine Guard 22649 | -3/Quarantine | Destroyed Quarantine Guard 22764 | -3/Quarantine | Watched by a mysterious "MATRIX" hacker. 22812 | -3/Quarantine | Spotted Quarantine Guard 22816 | -3/Quarantine | Destroyed Quarantine Guard 22880 | -3/Quarantine | Spotted Quarantine Guard 22953 | -3/Quarantine | Found Alien Artifact 22958 | -3/Quarantine | Found Alien Artifact 22969 | -3/Quarantine | Found Alien Artifact 22997 | -3/Quarantine | Destroyed Quarantine Guard 23246 | -3/Quarantine | Destroyed Quarantine Guard 23259 | -3/Quarantine | Destroyed Quarantine Guard 23844 | -3/Quarantine | Found Alien Artifact 23844 | -3/Quarantine | Identified Phase Redirector 23913 | -3/Quarantine | Spotted Quarantine Guard 23945 | -3/Quarantine | Destroyed Quarantine Guard 24157 | -3/Quarantine | Found Alien Artifact 24400 | -3/Quarantine | Identified Core Stripper 24420 | -3/Quarantine | Spotted Fortress 24437 | -3/Quarantine | Destroyed Fortress 24462 | -3/Quarantine | Found Exp. Force Field 24467 | -3/Quarantine | Found Vortex Chain Reactor 24471 | -3/Quarantine | Found Exp. EM Shield 24487 | -3/Quarantine | Found Thermal Barrier 24681 | -3/Quarantine | System corruption reached 10% 24687 | -3/Quarantine | System corruption reached 30% 24853 | -3/Quarantine | Identified Core Reset Matrix 24853 | -3/Quarantine | Used Core Reset Matrix 24857 | -3/Quarantine | Detected hypermatrix surge 24857 | -3/Quarantine | Sensed 12 artifacts in vicinity 24956 | -3/Quarantine | Discovered exit to Research (range 11) 24977 | -3/Quarantine | Found Subatomic Replicator 25081 | -3/Quarantine | Found Core Cannon 25152 | -3/Quarantine | Found Hpw. Transdimensional Reconstructor 25459 | -3/Quarantine | Discovered new exit (range 5) 25459 | -3/Quarantine | Discovered new exit (range 6) 25459 | -3/Quarantine | Spotted Quarantine Guard 25459 | -3/Quarantine | Spotted Quarantine Guard 25464 | -3/Quarantine | Identified exit to Section 7 25470 | -3/Quarantine | Entered Section 7 25471 | -3/Section 7 | Detected hypermatrix surge 25471 | -3/Section 7 | Sensed 18 artifacts in vicinity 25523 | -3/Section 7 | Found Integrity Redistributor 25524 | -3/Section 7 | Used Integrity Redistributor, redistributed integrity from core (-253) 25714 | -3/Section 7 | Garrison activated, responded to threat 25799 | -3/Section 7 | Destroyed 10 combat bots 25947 | -3/Section 7 | Spotted B-86 Titan 25954 | -3/Section 7 | Destroyed B-86 Titan 26676 | -3/Section 7 | Found Integrity Redistributor 26686 | -3/Section 7 | Discovered exit to Research (range 18) 26710 | -3/Section 7 | Build established: Tank 26713 | -3/Section 7 | Entered Research 26713 | -2/Research | Evolved 2 slots: Utility x2 26903 | -2/Research | Unchained authorized (BL-1NK) 26910 | -2/Research | Discovered new exit (range 16) 26995 | -2/Research | Identified exit to Testing 27071 | -2/Research | Build established: Scavenger-Tank 27187 | -2/Research | Destroyed BL-1NK 27512 | -2/Research | Discovered exit to Testing (range 16) 27592 | -2/Research | Entered Testing 27830 | -2/Testing | Found Null Cannon 27912 | -2/Testing | Found Centrium Heavy Armor Plating 27978 | -2/Testing | Found Ghost Barrier 27990 | -2/Testing | Spotted Striker 27991 | -2/Testing | Spotted Striker 28012 | -2/Testing | Found Exp. Signal Interpreter 28046 | -2/Testing | Destroyed Striker 28107 | -2/Testing | Found Tactical Quantum Warhead 28280 | -2/Testing | Found Exp. Shock Absorption System 28534 | -2/Testing | Found Exp. Transmission Jammer 28686 | -2/Testing | System corruption reached 10% 28803 | -2/Testing | Fabricated Hvy. Reactive Plating? 29218 | -2/Testing | Scanned by Researcher 29343 | -2/Testing | Discovered new exit (range 12) 29380 | -2/Testing | Identified exit to Access 29382 | -2/Testing | Entered Access 29382 | -1/Access | Evolved 2 slots: Utility x2 30485 | -1/Access | Discovered new exit (range 7) 30494 | -1/Access | Identified exit to Command 30496 | -1/Access | Entered Command 31126 | -1/Command | Spotted M Guard 31126 | -1/Command | Spotted M Guard 31137 | -1/Command | Spotted Combat Programmer 31138 | -1/Command | Spotted Combat Programmer 31164 | -1/Command | Destroyed Combat Programmer 31180 | -1/Command | Destroyed Combat Programmer 31196 | -1/Command | Destroyed M Guard 31209 | -1/Command | Destroyed M Guard 31209 | -1/Command | All MAIN.C guards destroyed 31898 | -1/Command | Met MAIN.C 31898 | -1/Command | 0b10 Conduit disabled 31921 | -1/Command | Destroyed MAIN.C Shell 31923 | -1/Command | MAIN.C activated Command garrisons 31948 | -1/Command | Destroyed MAIN.C 31966 | -1/Command | Discovered new exit (range 31) 31966 | -1/Command | Discovered new exit (range 80) 31966 | -1/Command | Extracted map data and part IDs from MAIN.C's data core 32064 | -1/Command | Found Vortex Chain Reactor 32067 | -1/Command | Found Vortex Chain Reactor 32072 | -1/Command | Found Omega Cannon 32091 | -1/Command | Found Exp. System Purifier 32140 | -1/Command | Found Exp. Phase Shifter 34182 | -1/Command | Found Exp. Core Analyzer 34892 | -1/Command | Found Quantum Capacitor 39585 | -1/Command | Warped through subspace to slip node 39585 | -1/Command | Discovered new exit (range 4) 39635 | -1/Command | Entered Access_0 39636 | -1/Access_0 | Sensed 4 artifacts in vicinity 39638 | -1/Access_0 | Met Architect 39639 | -1/Access_0 | Architect warped through subspace 39651 | -1/Access_0 | Destroyed A8 39708 | -1/Access_0 | Used Subatomic Replicator to replicate Integrity Redistributor 39711 | -1/Access_0 | Used Integrity Redistributor, redistributed integrity from core (-361) 39722 | -1/Access_0 | Core integrity fell below 50% 39753 | -1/Access_0 | Architect warped through subspace 39785 | -1/Access_0 | Architect warped through subspace 39809 | -1/Access_0 | Architect warped through subspace 39830 | -1/Access_0 | Architect warped through subspace 39851 | -1/Access_0 | Architect warped through subspace 39874 | -1/Access_0 | Architect warped through subspace 39892 | -1/Access_0 | Architect warped through subspace 39908 | -1/Access_0 | Architect warped through subspace 39934 | -1/Access_0 | Architect warped through subspace 39937 | -1/Access_0 | Subspace Access Node disabled 39971 | -1/Access_0 | Released all parts (19) 39975 | -1/Access_0 | Core integrity fell below 20% 40001 | -1/Access_0 | Destroyed by Enhanced Grunt with Neutron Cannon Last Messages --------------- 39971_ Released Exp. Coolant Injector. 39971_ Released Vortex Chain Reactor. 39971_ Released Huge Storage Unit. 39971_ Released Exp. Core Analyzer. 39971_ Released Exp. Targeting Computer. 39971_ Released Terrain Scan Processor. 39971_ Released Imp. Armor Integrity Analyzer. 39971_ Released Adv. Heavy Siege Treads. 39971_ Released Hcl. Linear Accelerator. 39971_ Released Thermal Barrier. 39971_ Released Adv. Hardlight Generator. 39971_ Released Centrium Heavy Armor Plating. 39971_ Released Prc. Energy Filter. 39973_ Penetrated by Quantum Shear. 39979_ Quantum Shear penetrates Wall. 39979_ Penetrated by Quantum Shear. 39997_ Quantum Shear penetrates Wall. 39997_ Penetrated by Quantum Shear. [Achievement: 75k Club] [Achievement: Punisher] Map ----- +----------------------------------------------------+ | ?????????????????????????????????????????????????? | | ?????????????????????????????????????????????????? | | ??????????????????????????????????????????###????? | | ??????????????????????????????????????????# ##???? | | ??????????????????????????????????????##### ##### | | ???????????????????# ???????????????? # | | ???????????????????# ??? ???????????? | | ???????????????????# ??# ???????????????# | | ???????????????????# ?? ??????????????## | | ???????????????????# ?? ?????????????## | | ???????????????????# ?? ?????????????## | | ???????????????????# ## ?????????????# | | ??????????????????## # ?????????????## | | ?????????????????## ???????????????# # #### | | ?????????????????# ???????????????# ###??## | | ??????????????????# #???????????????# #?????# | | ?????????????????## #########???????# #?????? | | ????????????????## ######### #?????? | | ????????????????# #?????? | | ????????????????# "######" #?????? | | ????????? ####### ###?????#############?????? | | ???????# ######?????????????????????? | | ???????# #?????????????????????? | | ????????######## #?????????????????????? | | ???????? ###### #?????????????????????? | | ??????????###### #?????#@ #?????????????????????? | | ???????????????# ?????# #?????????????????????? | | ???????????????# ????? ##?????????????????????? | | ???????????????#?????g #??????????????????????? | | ????????????????????#g ??????????????????????? | | ????????????????????#g ??????????????????????? | | ????????????????????## ??????????????????????? | | ?????????????????????# ??????????????????????? | | ?????????????????????# ??????????????????????? | | ????????????????????? ??????????????????????? | | ????????????????????? ###?????????????????????? | | ???????????????????? ## ????????????????????????? | | ???????????????????? ?# ????????????????????????? | | ???????????????????#??## ????????????????????????? | | ????????????????????????#????????????????????????? | | ?????????????????????????????????????????????????? | | ?????????????????????????????????????????????????? | | ?????????????????????????????????????????????????? | | ?????????????????????????????????????????????????? | | ?????????????????????????????????????????????????? | | ?????????????????????????????????????????????????? | | ?????????????????????????????????????????????????? | | ?????????????????????????????????????????????????? | | ?????????????????????????????????????????????????? | | ?????????????????????????????????????????????????? | +----------------------------------------------------+ Best States ------------- Heat Dissipation 99 Coolant Potential 240 Energy Generation 75 Energy Capacity 1200 Matter Stores 412 Matter Capacity 800 Sight Range 24 Robot Scan Range 16 Terrain Scan Range 24 Terrain Scan Density 85 Jamming Range 22 Power Amplification 40 Armor Coverage 2400 Resistance: KI 40 Resistance: TH 50 Resistance: EX 75 Resistance: EM 75 Utility Shielding 66 Weapon Cycling 25 Phase Shifting 20 Evasion (%) 84 Targeting Accuracy 12 Core Analysis 8 Armor Integrity Analysis 40 Recoil Reduction 6 Energy Filtering 50 Offensive Hacking 10 Item Schematics ----------------- Hvy. Reactive Plating | -2/Testing | Hacked Robot Schematics ------------------ None Fabricated ------------ Hvy. Reactive Plating | x1 | -2/Testing Repaired ---------- Imp. Heat Sink | 55% | -9/Materials Arm. Wheel | 12% | -8/Materials Cld. Deuterium Engine | 26% | -4/Factory Studied --------- None Alien Tech Used ----------------- Core Expander Phase Redirector Core Stripper Core Reset Matrix Integrity Redistributor Core Cannon High-powered Transdimensional Reconstructor Subatomic Replicator Achievements -------------- 75k Club Bigger And Badder Botjacking Punisher Sniper Tailor-made Tank Life Uncivil War Challenges ------------ None Game ------ Seed ShadeHardlightObliterator Manual? 0 Play Time 06:35:42 Cumulative 518.5 hours Start 2026.03.09 @ 13:42:07 End 2026.03.10 @ 01:30:25 Sessions 5 Manual Loads 0 Difficulty Rogue Special Mode None Game No. 246 Rogue 246 Adventurer 0 Explorer 0 Win Type - Total 9 Types 7/0/1/0/0/0/1/0/0/0 Lore% 73 Gallery% 71 Achievement% 51 Wizard Run 0 Options --------- Layout 0 ASCII 0 Keyboard 1 Movement Vi Keybinds 0 Fullscreen 2 Font 18/SmallcapsGlow Map View 76x50 Zoom Use 0% Tactical HUD 1 Map Filters NONE Filters NONE Steam 1 RUN: d34da437-263c-4c66-a7a3-10ff9b9b0c44